Workbook

Sheet Výpočet kapacit
F1: heslo pro odemčení: | G1: pcmetal
A2: Výpočet objemu zakázky | C2: =TODAY() -> 2018-03-12
A3: OBJEDNÁVKA - VÝROBNÍ ČAS [h] = | C3: =CEILING(D63,1) -> 6 | E3: SOUPIS MATERIÁLŮ - KLIKNI
A4: Číslo dílce | B4: Název dílce | C4: Množství v objednávce | D4: Výrobní čas včetně nastavení | E4: Jakost materiálu | F4: Průměr/Rozměr | G4: Potřebná délka
A5: PPB-001.04.02 | B5: =IF(A5=0,"",(VLOOKUP(A5,'Seznam dílů'!$A$2:$B$111,2,FALSE))) -> vložka | C5: 1 | D5: =IF(A5=0,0,(C5*VLOOKUP(A5,'Seznam dílů'!$A$2:$C$111,3,FALSE)+2700)) -> 2762 | E5: =IFERROR(VLOOKUP(A5,'Seznam dílů'!A$2:F$101,4,FALSE),0) -> 4301 | F5: =IFERROR(VLOOKUP(A5,'Seznam dílů'!A$2:E$101,5,FALSE),0) -> 16 | G5: =IFERROR(C5*((VLOOKUP(A5,'Seznam dílů'!A$2:F$101,6,FALSE)+7)),0) -> 32
A6: PPB-001.06.04 | B6: =IF(A6=0,"",(VLOOKUP(A6,'Seznam dílů'!$A$2:$B$111,2,FALSE))) -> čep 1 D8 | C6: 2 | D6: =IF(A6=0,0,(C6*VLOOKUP(A6,'Seznam dílů'!$A$2:$C$111,3,FALSE)+2700)) -> 2744 | E6: =IFERROR(VLOOKUP(A6,'Seznam dílů'!A$2:F$101,4,FALSE),0) -> 4301 | F6: =IFERROR(VLOOKUP(A6,'Seznam dílů'!A$2:E$101,5,FALSE),0) -> 8 | G6: =IFERROR(C6*((VLOOKUP(A6,'Seznam dílů'!A$2:F$101,6,FALSE)+7)),0) -> 44
A7: PPB-005.18 | B7: =IF(A7=0,"",(VLOOKUP(A7,'Seznam dílů'!$A$2:$B$111,2,FALSE))) -> čep hladký s drážkami | C7: 3 | D7: =IF(A7=0,0,(C7*VLOOKUP(A7,'Seznam dílů'!$A$2:$C$111,3,FALSE)+2700)) -> 2811 | E7: =IFERROR(VLOOKUP(A7,'Seznam dílů'!A$2:F$101,4,FALSE),0) -> 4305 | F7: =IFERROR(VLOOKUP(A7,'Seznam dílů'!A$2:E$101,5,FALSE),0) -> 10 | G7: =IFERROR(C7*((VLOOKUP(A7,'Seznam dílů'!A$2:F$101,6,FALSE)+7)),0) -> 213
A8: PPB-001.10.04 b | B8: =IF(A8=0,"",(VLOOKUP(A8,'Seznam dílů'!$A$2:$B$111,2,FALSE))) -> dorazový čep 2 | C8: 4 | D8: =IF(A8=0,0,(C8*VLOOKUP(A8,'Seznam dílů'!$A$2:$C$111,3,FALSE)+2700)) -> 2800 | E8: =IFERROR(VLOOKUP(A8,'Seznam dílů'!A$2:F$101,4,FALSE),0) -> 4301 | F8: =IFERROR(VLOOKUP(A8,'Seznam dílů'!A$2:E$101,5,FALSE),0) -> 10 | G8: =IFERROR(C8*((VLOOKUP(A8,'Seznam dílů'!A$2:F$101,6,FALSE)+7)),0) -> 116
A9: PPB-019 | B9: =IF(A9=0,"",(VLOOKUP(A9,'Seznam dílů'!$A$2:$B$111,2,FALSE))) -> čep hlavní | C9: 5 | D9: =IF(A9=0,0,(C9*VLOOKUP(A9,'Seznam dílů'!$A$2:$C$111,3,FALSE)+2700)) -> 2850 | E9: =IFERROR(VLOOKUP(A9,'Seznam dílů'!A$2:F$101,4,FALSE),0) -> 4305 | F9: =IFERROR(VLOOKUP(A9,'Seznam dílů'!A$2:E$101,5,FALSE),0) -> 15 | G9: =IFERROR(C9*((VLOOKUP(A9,'Seznam dílů'!A$2:F$101,6,FALSE)+7)),0) -> 340
A10: PPB-001.10.05 | B10: =IF(A10=0,"",(VLOOKUP(A10,'Seznam dílů'!$A$2:$B$111,2,FALSE))) -> trubka | C10: 6 | D10: =IF(A10=0,0,(C10*VLOOKUP(A10,'Seznam dílů'!$A$2:$C$111,3,FALSE)+2700)) -> 3720 | E10: =IFERROR(VLOOKUP(A10,'Seznam dílů'!A$2:F$101,4,FALSE),0) -> 11373 | F10: =IFERROR(VLOOKUP(A10,'Seznam dílů'!A$2:E$101,5,FALSE),0) -> 45x5 | G10: =IFERROR(C10*((VLOOKUP(A10,'Seznam dílů'!A$2:F$101,6,FALSE)+7)),0) -> 642
A11: PPB-007.11 | B11: =IF(A11=0,"",(VLOOKUP(A11,'Seznam dílů'!$A$2:$B$111,2,FALSE))) -> čep aretace nohy | C11: 7 | D11: =IF(A11=0,0,(C11*VLOOKUP(A11,'Seznam dílů'!$A$2:$C$111,3,FALSE)+2700)) -> 2868 | E11: =IFERROR(VLOOKUP(A11,'Seznam dílů'!A$2:F$101,4,FALSE),0) -> 4301 | F11: =IFERROR(VLOOKUP(A11,'Seznam dílů'!A$2:E$101,5,FALSE),0) -> 10 | G11: =IFERROR(C11*((VLOOKUP(A11,'Seznam dílů'!A$2:F$101,6,FALSE)+7)),0) -> 231
B12: =IF(A12=0,"",(VLOOKUP(A12,'Seznam dílů'!$A$2:$B$111,2,FALSE))) ->  | D12: =IF(A12=0,0,(C12*VLOOKUP(A12,'Seznam dílů'!$A$2:$C$111,3,FALSE)+2700)) -> 0 | E12: =IFERROR(VLOOKUP(A12,'Seznam dílů'!A$2:F$101,4,FALSE),0) -> 0 | F12: =IFERROR(VLOOKUP(A12,'Seznam dílů'!A$2:E$101,5,FALSE),0) -> 0 | G12: =IFERROR(C12*((VLOOKUP(A12,'Seznam dílů'!A$2:F$101,6,FALSE)+7)),0) -> 0
B13: =IF(A13=0,"",(VLOOKUP(A13,'Seznam dílů'!$A$2:$B$111,2,FALSE))) ->  | D13: =IF(A13=0,0,(C13*VLOOKUP(A13,'Seznam dílů'!$A$2:$C$111,3,FALSE)+2700)) -> 0 | E13: =IFERROR(VLOOKUP(A13,'Seznam dílů'!A$2:F$101,4,FALSE),0) -> 0 | F13: =IFERROR(VLOOKUP(A13,'Seznam dílů'!A$2:E$101,5,FALSE),0) -> 0 | G13: =IFERROR(C13*((VLOOKUP(A13,'Seznam dílů'!A$2:F$101,6,FALSE)+7)),0) -> 0
B14: =IF(A14=0,"",(VLOOKUP(A14,'Seznam dílů'!$A$2:$B$111,2,FALSE))) ->  | D14: =IF(A14=0,0,(C14*VLOOKUP(A14,'Seznam dílů'!$A$2:$C$111,3,FALSE)+2700)) -> 0 | E14: =IFERROR(VLOOKUP(A14,'Seznam dílů'!A$2:F$101,4,FALSE),0) -> 0 | F14: =IFERROR(VLOOKUP(A14,'Seznam dílů'!A$2:E$101,5,FALSE),0) -> 0 | G14: =IFERROR(C14*((VLOOKUP(A14,'Seznam dílů'!A$2:F$101,6,FALSE)+7)),0) -> 0
B15: =IF(A15=0,"",(VLOOKUP(A15,'Seznam dílů'!$A$2:$B$111,2,FALSE))) ->  | D15: =IF(A15=0,0,(C15*VLOOKUP(A15,'Seznam dílů'!$A$2:$C$111,3,FALSE)+2700)) -> 0 | E15: =IFERROR(VLOOKUP(A15,'Seznam dílů'!A$2:F$101,4,FALSE),0) -> 0 | F15: =IFERROR(VLOOKUP(A15,'Seznam dílů'!A$2:E$101,5,FALSE),0) -> 0 | G15: =IFERROR(C15*((VLOOKUP(A15,'Seznam dílů'!A$2:F$101,6,FALSE)+7)),0) -> 0
B16: =IF(A16=0,"",(VLOOKUP(A16,'Seznam dílů'!$A$2:$B$111,2,FALSE))) ->  | D16: =IF(A16=0,0,(C16*VLOOKUP(A16,'Seznam dílů'!$A$2:$C$111,3,FALSE)+2700)) -> 0 | E16: =IFERROR(VLOOKUP(A16,'Seznam dílů'!A$2:F$101,4,FALSE),0) -> 0 | F16: =IFERROR(VLOOKUP(A16,'Seznam dílů'!A$2:E$101,5,FALSE),0) -> 0 | G16: =IFERROR(C16*((VLOOKUP(A16,'Seznam dílů'!A$2:F$101,6,FALSE)+7)),0) -> 0
B17: =IF(A17=0,"",(VLOOKUP(A17,'Seznam dílů'!$A$2:$B$111,2,FALSE))) ->  | D17: =IF(A17=0,0,(C17*VLOOKUP(A17,'Seznam dílů'!$A$2:$C$111,3,FALSE)+2700)) -> 0 | E17: =IFERROR(VLOOKUP(A17,'Seznam dílů'!A$2:F$101,4,FALSE),0) -> 0 | F17: =IFERROR(VLOOKUP(A17,'Seznam dílů'!A$2:E$101,5,FALSE),0) -> 0 | G17: =IFERROR(C17*((VLOOKUP(A17,'Seznam dílů'!A$2:F$101,6,FALSE)+7)),0) -> 0
B18: =IF(A18=0,"",(VLOOKUP(A18,'Seznam dílů'!$A$2:$B$111,2,FALSE))) ->  | D18: =IF(A18=0,0,(C18*VLOOKUP(A18,'Seznam dílů'!$A$2:$C$111,3,FALSE)+2700)) -> 0 | E18: =IFERROR(VLOOKUP(A18,'Seznam dílů'!A$2:F$101,4,FALSE),0) -> 0 | F18: =IFERROR(VLOOKUP(A18,'Seznam dílů'!A$2:E$101,5,FALSE),0) -> 0 | G18: =IFERROR(C18*((VLOOKUP(A18,'Seznam dílů'!A$2:F$101,6,FALSE)+7)),0) -> 0
B19: =IF(A19=0,"",(VLOOKUP(A19,'Seznam dílů'!$A$2:$B$111,2,FALSE))) ->  | D19: =IF(A19=0,0,(C19*VLOOKUP(A19,'Seznam dílů'!$A$2:$C$111,3,FALSE)+2700)) -> 0 | E19: =IFERROR(VLOOKUP(A19,'Seznam dílů'!A$2:F$101,4,FALSE),0) -> 0 | F19: =IFERROR(VLOOKUP(A19,'Seznam dílů'!A$2:E$101,5,FALSE),0) -> 0 | G19: =IFERROR(C19*((VLOOKUP(A19,'Seznam dílů'!A$2:F$101,6,FALSE)+7)),0) -> 0
B20: =IF(A20=0,"",(VLOOKUP(A20,'Seznam dílů'!$A$2:$B$111,2,FALSE))) ->  | D20: =IF(A20=0,0,(C20*VLOOKUP(A20,'Seznam dílů'!$A$2:$C$111,3,FALSE)+2700)) -> 0 | E20: =IFERROR(VLOOKUP(A20,'Seznam dílů'!A$2:F$101,4,FALSE),0) -> 0 | F20: =IFERROR(VLOOKUP(A20,'Seznam dílů'!A$2:E$101,5,FALSE),0) -> 0 | G20: =IFERROR(C20*((VLOOKUP(A20,'Seznam dílů'!A$2:F$101,6,FALSE)+7)),0) -> 0
B21: =IF(A21=0,"",(VLOOKUP(A21,'Seznam dílů'!$A$2:$B$111,2,FALSE))) ->  | D21: =IF(A21=0,0,(C21*VLOOKUP(A21,'Seznam dílů'!$A$2:$C$111,3,FALSE)+2700)) -> 0 | E21: =IFERROR(VLOOKUP(A21,'Seznam dílů'!A$2:F$101,4,FALSE),0) -> 0 | F21: =IFERROR(VLOOKUP(A21,'Seznam dílů'!A$2:E$101,5,FALSE),0) -> 0 | G21: =IFERROR(C21*((VLOOKUP(A21,'Seznam dílů'!A$2:F$101,6,FALSE)+7)),0) -> 0
B22: =IF(A22=0,"",(VLOOKUP(A22,'Seznam dílů'!$A$2:$B$111,2,FALSE))) ->  | D22: =IF(A22=0,0,(C22*VLOOKUP(A22,'Seznam dílů'!$A$2:$C$111,3,FALSE)+2700)) -> 0 | E22: =IFERROR(VLOOKUP(A22,'Seznam dílů'!A$2:F$101,4,FALSE),0) -> 0 | F22: =IFERROR(VLOOKUP(A22,'Seznam dílů'!A$2:E$101,5,FALSE),0) -> 0 | G22: =IFERROR(C22*((VLOOKUP(A22,'Seznam dílů'!A$2:F$101,6,FALSE)+7)),0) -> 0
B23: =IF(A23=0,"",(VLOOKUP(A23,'Seznam dílů'!$A$2:$B$111,2,FALSE))) ->  | D23: =IF(A23=0,0,(C23*VLOOKUP(A23,'Seznam dílů'!$A$2:$C$111,3,FALSE)+2700)) -> 0 | E23: =IFERROR(VLOOKUP(A23,'Seznam dílů'!A$2:F$101,4,FALSE),0) -> 0 | F23: =IFERROR(VLOOKUP(A23,'Seznam dílů'!A$2:E$101,5,FALSE),0) -> 0 | G23: =IFERROR(C23*((VLOOKUP(A23,'Seznam dílů'!A$2:F$101,6,FALSE)+7)),0) -> 0
B24: =IF(A24=0,"",(VLOOKUP(A24,'Seznam dílů'!$A$2:$B$111,2,FALSE))) ->  | D24: =IF(A24=0,0,(C24*VLOOKUP(A24,'Seznam dílů'!$A$2:$C$111,3,FALSE)+2700)) -> 0 | E24: =IFERROR(VLOOKUP(A24,'Seznam dílů'!A$2:F$101,4,FALSE),0) -> 0 | F24: =IFERROR(VLOOKUP(A24,'Seznam dílů'!A$2:E$101,5,FALSE),0) -> 0 | G24: =IFERROR(C24*((VLOOKUP(A24,'Seznam dílů'!A$2:F$101,6,FALSE)+7)),0) -> 0
B25: =IF(A25=0,"",(VLOOKUP(A25,'Seznam dílů'!$A$2:$B$111,2,FALSE))) ->  | D25: =IF(A25=0,0,(C25*VLOOKUP(A25,'Seznam dílů'!$A$2:$C$111,3,FALSE)+2700)) -> 0 | E25: =IFERROR(VLOOKUP(A25,'Seznam dílů'!A$2:F$101,4,FALSE),0) -> 0 | F25: =IFERROR(VLOOKUP(A25,'Seznam dílů'!A$2:E$101,5,FALSE),0) -> 0 | G25: =IFERROR(C25*((VLOOKUP(A25,'Seznam dílů'!A$2:F$101,6,FALSE)+7)),0) -> 0
B26: =IF(A26=0,"",(VLOOKUP(A26,'Seznam dílů'!$A$2:$B$111,2,FALSE))) ->  | D26: =IF(A26=0,0,(C26*VLOOKUP(A26,'Seznam dílů'!$A$2:$C$111,3,FALSE)+2700)) -> 0 | E26: =IFERROR(VLOOKUP(A26,'Seznam dílů'!A$2:F$101,4,FALSE),0) -> 0 | F26: =IFERROR(VLOOKUP(A26,'Seznam dílů'!A$2:E$101,5,FALSE),0) -> 0 | G26: =IFERROR(C26*((VLOOKUP(A26,'Seznam dílů'!A$2:F$101,6,FALSE)+7)),0) -> 0
B27: =IF(A27=0,"",(VLOOKUP(A27,'Seznam dílů'!$A$2:$B$111,2,FALSE))) ->  | D27: =IF(A27=0,0,(C27*VLOOKUP(A27,'Seznam dílů'!$A$2:$C$111,3,FALSE)+2700)) -> 0 | E27: =IFERROR(VLOOKUP(A27,'Seznam dílů'!A$2:F$101,4,FALSE),0) -> 0 | F27: =IFERROR(VLOOKUP(A27,'Seznam dílů'!A$2:E$101,5,FALSE),0) -> 0 | G27: =IFERROR(C27*((VLOOKUP(A27,'Seznam dílů'!A$2:F$101,6,FALSE)+7)),0) -> 0
B28: =IF(A28=0,"",(VLOOKUP(A28,'Seznam dílů'!$A$2:$B$111,2,FALSE))) ->  | D28: =IF(A28=0,0,(C28*VLOOKUP(A28,'Seznam dílů'!$A$2:$C$111,3,FALSE)+2700)) -> 0 | E28: =IFERROR(VLOOKUP(A28,'Seznam dílů'!A$2:F$101,4,FALSE),0) -> 0 | F28: =IFERROR(VLOOKUP(A28,'Seznam dílů'!A$2:E$101,5,FALSE),0) -> 0 | G28: =IFERROR(C28*((VLOOKUP(A28,'Seznam dílů'!A$2:F$101,6,FALSE)+7)),0) -> 0
B29: =IF(A29=0,"",(VLOOKUP(A29,'Seznam dílů'!$A$2:$B$111,2,FALSE))) ->  | D29: =IF(A29=0,0,(C29*VLOOKUP(A29,'Seznam dílů'!$A$2:$C$111,3,FALSE)+2700)) -> 0 | E29: =IFERROR(VLOOKUP(A29,'Seznam dílů'!A$2:F$101,4,FALSE),0) -> 0 | F29: =IFERROR(VLOOKUP(A29,'Seznam dílů'!A$2:E$101,5,FALSE),0) -> 0 | G29: =IFERROR(C29*((VLOOKUP(A29,'Seznam dílů'!A$2:F$101,6,FALSE)+7)),0) -> 0
B30: =IF(A30=0,"",(VLOOKUP(A30,'Seznam dílů'!$A$2:$B$111,2,FALSE))) ->  | D30: =IF(A30=0,0,(C30*VLOOKUP(A30,'Seznam dílů'!$A$2:$C$111,3,FALSE)+2700)) -> 0 | E30: =IFERROR(VLOOKUP(A30,'Seznam dílů'!A$2:F$101,4,FALSE),0) -> 0 | F30: =IFERROR(VLOOKUP(A30,'Seznam dílů'!A$2:E$101,5,FALSE),0) -> 0 | G30: =IFERROR(C30*((VLOOKUP(A30,'Seznam dílů'!A$2:F$101,6,FALSE)+7)),0) -> 0
B31: =IF(A31=0,"",(VLOOKUP(A31,'Seznam dílů'!$A$2:$B$111,2,FALSE))) ->  | D31: =IF(A31=0,0,(C31*VLOOKUP(A31,'Seznam dílů'!$A$2:$C$111,3,FALSE)+2700)) -> 0 | E31: =IFERROR(VLOOKUP(A31,'Seznam dílů'!A$2:F$101,4,FALSE),0) -> 0 | F31: =IFERROR(VLOOKUP(A31,'Seznam dílů'!A$2:E$101,5,FALSE),0) -> 0 | G31: =IFERROR(C31*((VLOOKUP(A31,'Seznam dílů'!A$2:F$101,6,FALSE)+7)),0) -> 0
B32: =IF(A32=0,"",(VLOOKUP(A32,'Seznam dílů'!$A$2:$B$111,2,FALSE))) ->  | D32: =IF(A32=0,0,(C32*VLOOKUP(A32,'Seznam dílů'!$A$2:$C$111,3,FALSE)+2700)) -> 0 | E32: =IFERROR(VLOOKUP(A32,'Seznam dílů'!A$2:F$101,4,FALSE),0) -> 0 | F32: =IFERROR(VLOOKUP(A32,'Seznam dílů'!A$2:E$101,5,FALSE),0) -> 0 | G32: =IFERROR(C32*((VLOOKUP(A32,'Seznam dílů'!A$2:F$101,6,FALSE)+7)),0) -> 0
B33: =IF(A33=0,"",(VLOOKUP(A33,'Seznam dílů'!$A$2:$B$111,2,FALSE))) ->  | D33: =IF(A33=0,0,(C33*VLOOKUP(A33,'Seznam dílů'!$A$2:$C$111,3,FALSE)+2700)) -> 0 | E33: =IFERROR(VLOOKUP(A33,'Seznam dílů'!A$2:F$101,4,FALSE),0) -> 0 | F33: =IFERROR(VLOOKUP(A33,'Seznam dílů'!A$2:E$101,5,FALSE),0) -> 0 | G33: =IFERROR(C33*((VLOOKUP(A33,'Seznam dílů'!A$2:F$101,6,FALSE)+7)),0) -> 0
B34: =IF(A34=0,"",(VLOOKUP(A34,'Seznam dílů'!$A$2:$B$111,2,FALSE))) ->  | D34: =IF(A34=0,0,(C34*VLOOKUP(A34,'Seznam dílů'!$A$2:$C$111,3,FALSE)+2700)) -> 0 | E34: =IFERROR(VLOOKUP(A34,'Seznam dílů'!A$2:F$101,4,FALSE),0) -> 0 | F34: =IFERROR(VLOOKUP(A34,'Seznam dílů'!A$2:E$101,5,FALSE),0) -> 0 | G34: =IFERROR(C34*((VLOOKUP(A34,'Seznam dílů'!A$2:F$101,6,FALSE)+7)),0) -> 0
B35: =IF(A35=0,"",(VLOOKUP(A35,'Seznam dílů'!$A$2:$B$111,2,FALSE))) ->  | D35: =IF(A35=0,0,(C35*VLOOKUP(A35,'Seznam dílů'!$A$2:$C$111,3,FALSE)+2700)) -> 0 | E35: =IFERROR(VLOOKUP(A35,'Seznam dílů'!A$2:F$101,4,FALSE),0) -> 0 | F35: =IFERROR(VLOOKUP(A35,'Seznam dílů'!A$2:E$101,5,FALSE),0) -> 0 | G35: =IFERROR(C35*((VLOOKUP(A35,'Seznam dílů'!A$2:F$101,6,FALSE)+7)),0) -> 0
B36: =IF(A36=0,"",(VLOOKUP(A36,'Seznam dílů'!$A$2:$B$111,2,FALSE))) ->  | D36: =IF(A36=0,0,(C36*VLOOKUP(A36,'Seznam dílů'!$A$2:$C$111,3,FALSE)+2700)) -> 0 | E36: =IFERROR(VLOOKUP(A36,'Seznam dílů'!A$2:F$101,4,FALSE),0) -> 0 | F36: =IFERROR(VLOOKUP(A36,'Seznam dílů'!A$2:E$101,5,FALSE),0) -> 0 | G36: =IFERROR(C36*((VLOOKUP(A36,'Seznam dílů'!A$2:F$101,6,FALSE)+7)),0) -> 0
B37: =IF(A37=0,"",(VLOOKUP(A37,'Seznam dílů'!$A$2:$B$111,2,FALSE))) ->  | D37: =IF(A37=0,0,(C37*VLOOKUP(A37,'Seznam dílů'!$A$2:$C$111,3,FALSE)+2700)) -> 0 | E37: =IFERROR(VLOOKUP(A37,'Seznam dílů'!A$2:F$101,4,FALSE),0) -> 0 | F37: =IFERROR(VLOOKUP(A37,'Seznam dílů'!A$2:E$101,5,FALSE),0) -> 0 | G37: =IFERROR(C37*((VLOOKUP(A37,'Seznam dílů'!A$2:F$101,6,FALSE)+7)),0) -> 0
B38: =IF(A38=0,"",(VLOOKUP(A38,'Seznam dílů'!$A$2:$B$111,2,FALSE))) ->  | D38: =IF(A38=0,0,(C38*VLOOKUP(A38,'Seznam dílů'!$A$2:$C$111,3,FALSE)+2700)) -> 0 | E38: =IFERROR(VLOOKUP(A38,'Seznam dílů'!A$2:F$101,4,FALSE),0) -> 0 | F38: =IFERROR(VLOOKUP(A38,'Seznam dílů'!A$2:E$101,5,FALSE),0) -> 0 | G38: =IFERROR(C38*((VLOOKUP(A38,'Seznam dílů'!A$2:F$101,6,FALSE)+7)),0) -> 0
B39: =IF(A39=0,"",(VLOOKUP(A39,'Seznam dílů'!$A$2:$B$111,2,FALSE))) ->  | D39: =IF(A39=0,0,(C39*VLOOKUP(A39,'Seznam dílů'!$A$2:$C$111,3,FALSE)+2700)) -> 0 | E39: =IFERROR(VLOOKUP(A39,'Seznam dílů'!A$2:F$101,4,FALSE),0) -> 0 | F39: =IFERROR(VLOOKUP(A39,'Seznam dílů'!A$2:E$101,5,FALSE),0) -> 0 | G39: =IFERROR(C39*((VLOOKUP(A39,'Seznam dílů'!A$2:F$101,6,FALSE)+7)),0) -> 0
B40: =IF(A40=0,"",(VLOOKUP(A40,'Seznam dílů'!$A$2:$B$111,2,FALSE))) ->  | D40: =IF(A40=0,0,(C40*VLOOKUP(A40,'Seznam dílů'!$A$2:$C$111,3,FALSE)+2700)) -> 0 | E40: =IFERROR(VLOOKUP(A40,'Seznam dílů'!A$2:F$101,4,FALSE),0) -> 0 | F40: =IFERROR(VLOOKUP(A40,'Seznam dílů'!A$2:E$101,5,FALSE),0) -> 0 | G40: =IFERROR(C40*((VLOOKUP(A40,'Seznam dílů'!A$2:F$101,6,FALSE)+7)),0) -> 0
B41: =IF(A41=0,"",(VLOOKUP(A41,'Seznam dílů'!$A$2:$B$111,2,FALSE))) ->  | D41: =IF(A41=0,0,(C41*VLOOKUP(A41,'Seznam dílů'!$A$2:$C$111,3,FALSE)+2700)) -> 0 | E41: =IFERROR(VLOOKUP(A41,'Seznam dílů'!A$2:F$101,4,FALSE),0) -> 0 | F41: =IFERROR(VLOOKUP(A41,'Seznam dílů'!A$2:E$101,5,FALSE),0) -> 0 | G41: =IFERROR(C41*((VLOOKUP(A41,'Seznam dílů'!A$2:F$101,6,FALSE)+7)),0) -> 0
B42: =IF(A42=0,"",(VLOOKUP(A42,'Seznam dílů'!$A$2:$B$111,2,FALSE))) ->  | D42: =IF(A42=0,0,(C42*VLOOKUP(A42,'Seznam dílů'!$A$2:$C$111,3,FALSE)+2700)) -> 0 | E42: =IFERROR(VLOOKUP(A42,'Seznam dílů'!A$2:F$101,4,FALSE),0) -> 0 | F42: =IFERROR(VLOOKUP(A42,'Seznam dílů'!A$2:E$101,5,FALSE),0) -> 0 | G42: =IFERROR(C42*((VLOOKUP(A42,'Seznam dílů'!A$2:F$101,6,FALSE)+7)),0) -> 0
B43: =IF(A43=0,"",(VLOOKUP(A43,'Seznam dílů'!$A$2:$B$111,2,FALSE))) ->  | D43: =IF(A43=0,0,(C43*VLOOKUP(A43,'Seznam dílů'!$A$2:$C$111,3,FALSE)+2700)) -> 0 | E43: =IFERROR(VLOOKUP(A43,'Seznam dílů'!A$2:F$101,4,FALSE),0) -> 0 | F43: =IFERROR(VLOOKUP(A43,'Seznam dílů'!A$2:E$101,5,FALSE),0) -> 0 | G43: =IFERROR(C43*((VLOOKUP(A43,'Seznam dílů'!A$2:F$101,6,FALSE)+7)),0) -> 0
B44: =IF(A44=0,"",(VLOOKUP(A44,'Seznam dílů'!$A$2:$B$111,2,FALSE))) ->  | D44: =IF(A44=0,0,(C44*VLOOKUP(A44,'Seznam dílů'!$A$2:$C$111,3,FALSE)+2700)) -> 0 | E44: =IFERROR(VLOOKUP(A44,'Seznam dílů'!A$2:F$101,4,FALSE),0) -> 0 | F44: =IFERROR(VLOOKUP(A44,'Seznam dílů'!A$2:E$101,5,FALSE),0) -> 0 | G44: =IFERROR(C44*((VLOOKUP(A44,'Seznam dílů'!A$2:F$101,6,FALSE)+7)),0) -> 0
B45: =IF(A45=0,"",(VLOOKUP(A45,'Seznam dílů'!$A$2:$B$111,2,FALSE))) ->  | D45: =IF(A45=0,0,(C45*VLOOKUP(A45,'Seznam dílů'!$A$2:$C$111,3,FALSE)+2700)) -> 0 | E45: =IFERROR(VLOOKUP(A45,'Seznam dílů'!A$2:F$101,4,FALSE),0) -> 0 | F45: =IFERROR(VLOOKUP(A45,'Seznam dílů'!A$2:E$101,5,FALSE),0) -> 0 | G45: =IFERROR(C45*((VLOOKUP(A45,'Seznam dílů'!A$2:F$101,6,FALSE)+7)),0) -> 0
B46: =IF(A46=0,"",(VLOOKUP(A46,'Seznam dílů'!$A$2:$B$111,2,FALSE))) ->  | D46: =IF(A46=0,0,(C46*VLOOKUP(A46,'Seznam dílů'!$A$2:$C$111,3,FALSE)+2700)) -> 0 | E46: =IFERROR(VLOOKUP(A46,'Seznam dílů'!A$2:F$101,4,FALSE),0) -> 0 | F46: =IFERROR(VLOOKUP(A46,'Seznam dílů'!A$2:E$101,5,FALSE),0) -> 0 | G46: =IFERROR(C46*((VLOOKUP(A46,'Seznam dílů'!A$2:F$101,6,FALSE)+7)),0) -> 0
B47: =IF(A47=0,"",(VLOOKUP(A47,'Seznam dílů'!$A$2:$B$111,2,FALSE))) ->  | D47: =IF(A47=0,0,(C47*VLOOKUP(A47,'Seznam dílů'!$A$2:$C$111,3,FALSE)+2700)) -> 0 | E47: =IFERROR(VLOOKUP(A47,'Seznam dílů'!A$2:F$101,4,FALSE),0) -> 0 | F47: =IFERROR(VLOOKUP(A47,'Seznam dílů'!A$2:E$101,5,FALSE),0) -> 0 | G47: =IFERROR(C47*((VLOOKUP(A47,'Seznam dílů'!A$2:F$101,6,FALSE)+7)),0) -> 0
B48: =IF(A48=0,"",(VLOOKUP(A48,'Seznam dílů'!$A$2:$B$111,2,FALSE))) ->  | D48: =IF(A48=0,0,(C48*VLOOKUP(A48,'Seznam dílů'!$A$2:$C$111,3,FALSE)+2700)) -> 0 | E48: =IFERROR(VLOOKUP(A48,'Seznam dílů'!A$2:F$101,4,FALSE),0) -> 0 | F48: =IFERROR(VLOOKUP(A48,'Seznam dílů'!A$2:E$101,5,FALSE),0) -> 0 | G48: =IFERROR(C48*((VLOOKUP(A48,'Seznam dílů'!A$2:F$101,6,FALSE)+7)),0) -> 0
B49: =IF(A49=0,"",(VLOOKUP(A49,'Seznam dílů'!$A$2:$B$111,2,FALSE))) ->  | D49: =IF(A49=0,0,(C49*VLOOKUP(A49,'Seznam dílů'!$A$2:$C$111,3,FALSE)+2700)) -> 0 | E49: =IFERROR(VLOOKUP(A49,'Seznam dílů'!A$2:F$101,4,FALSE),0) -> 0 | F49: =IFERROR(VLOOKUP(A49,'Seznam dílů'!A$2:E$101,5,FALSE),0) -> 0 | G49: =IFERROR(C49*((VLOOKUP(A49,'Seznam dílů'!A$2:F$101,6,FALSE)+7)),0) -> 0
B50: =IF(A50=0,"",(VLOOKUP(A50,'Seznam dílů'!$A$2:$B$111,2,FALSE))) ->  | D50: =IF(A50=0,0,(C50*VLOOKUP(A50,'Seznam dílů'!$A$2:$C$111,3,FALSE)+2700)) -> 0 | E50: =IFERROR(VLOOKUP(A50,'Seznam dílů'!A$2:F$101,4,FALSE),0) -> 0 | F50: =IFERROR(VLOOKUP(A50,'Seznam dílů'!A$2:E$101,5,FALSE),0) -> 0 | G50: =IFERROR(C50*((VLOOKUP(A50,'Seznam dílů'!A$2:F$101,6,FALSE)+7)),0) -> 0
B51: =IF(A51=0,"",(VLOOKUP(A51,'Seznam dílů'!$A$2:$B$111,2,FALSE))) ->  | D51: =IF(A51=0,0,(C51*VLOOKUP(A51,'Seznam dílů'!$A$2:$C$111,3,FALSE)+2700)) -> 0 | E51: =IFERROR(VLOOKUP(A51,'Seznam dílů'!A$2:F$101,4,FALSE),0) -> 0 | F51: =IFERROR(VLOOKUP(A51,'Seznam dílů'!A$2:E$101,5,FALSE),0) -> 0 | G51: =IFERROR(C51*((VLOOKUP(A51,'Seznam dílů'!A$2:F$101,6,FALSE)+7)),0) -> 0
B52: =IF(A52=0,"",(VLOOKUP(A52,'Seznam dílů'!$A$2:$B$111,2,FALSE))) ->  | D52: =IF(A52=0,0,(C52*VLOOKUP(A52,'Seznam dílů'!$A$2:$C$111,3,FALSE)+2700)) -> 0 | E52: =IFERROR(VLOOKUP(A52,'Seznam dílů'!A$2:F$101,4,FALSE),0) -> 0 | F52: =IFERROR(VLOOKUP(A52,'Seznam dílů'!A$2:E$101,5,FALSE),0) -> 0 | G52: =IFERROR(C52*((VLOOKUP(A52,'Seznam dílů'!A$2:F$101,6,FALSE)+7)),0) -> 0
B53: =IF(A53=0,"",(VLOOKUP(A53,'Seznam dílů'!$A$2:$B$111,2,FALSE))) ->  | D53: =IF(A53=0,0,(C53*VLOOKUP(A53,'Seznam dílů'!$A$2:$C$111,3,FALSE)+2700)) -> 0 | E53: =IFERROR(VLOOKUP(A53,'Seznam dílů'!A$2:F$101,4,FALSE),0) -> 0 | F53: =IFERROR(VLOOKUP(A53,'Seznam dílů'!A$2:E$101,5,FALSE),0) -> 0 | G53: =IFERROR(C53*((VLOOKUP(A53,'Seznam dílů'!A$2:F$101,6,FALSE)+7)),0) -> 0
B54: =IF(A54=0,"",(VLOOKUP(A54,'Seznam dílů'!$A$2:$B$111,2,FALSE))) ->  | D54: =IF(A54=0,0,(C54*VLOOKUP(A54,'Seznam dílů'!$A$2:$C$111,3,FALSE)+2700)) -> 0 | E54: =IFERROR(VLOOKUP(A54,'Seznam dílů'!A$2:F$101,4,FALSE),0) -> 0 | F54: =IFERROR(VLOOKUP(A54,'Seznam dílů'!A$2:E$101,5,FALSE),0) -> 0 | G54: =IFERROR(C54*((VLOOKUP(A54,'Seznam dílů'!A$2:F$101,6,FALSE)+7)),0) -> 0
B55: =IF(A55=0,"",(VLOOKUP(A55,'Seznam dílů'!$A$2:$B$111,2,FALSE))) ->  | D55: =IF(A55=0,0,(C55*VLOOKUP(A55,'Seznam dílů'!$A$2:$C$111,3,FALSE)+2700)) -> 0 | E55: =IFERROR(VLOOKUP(A55,'Seznam dílů'!A$2:F$101,4,FALSE),0) -> 0 | F55: =IFERROR(VLOOKUP(A55,'Seznam dílů'!A$2:E$101,5,FALSE),0) -> 0 | G55: =IFERROR(C55*((VLOOKUP(A55,'Seznam dílů'!A$2:F$101,6,FALSE)+7)),0) -> 0
B56: =IF(A56=0,"",(VLOOKUP(A56,'Seznam dílů'!$A$2:$B$111,2,FALSE))) ->  | D56: =IF(A56=0,0,(C56*VLOOKUP(A56,'Seznam dílů'!$A$2:$C$111,3,FALSE)+2700)) -> 0 | E56: =IFERROR(VLOOKUP(A56,'Seznam dílů'!A$2:F$101,4,FALSE),0) -> 0 | F56: =IFERROR(VLOOKUP(A56,'Seznam dílů'!A$2:E$101,5,FALSE),0) -> 0 | G56: =IFERROR(C56*((VLOOKUP(A56,'Seznam dílů'!A$2:F$101,6,FALSE)+7)),0) -> 0
B57: =IF(A57=0,"",(VLOOKUP(A57,'Seznam dílů'!$A$2:$B$111,2,FALSE))) ->  | D57: =IF(A57=0,0,(C57*VLOOKUP(A57,'Seznam dílů'!$A$2:$C$111,3,FALSE)+2700)) -> 0 | E57: =IFERROR(VLOOKUP(A57,'Seznam dílů'!A$2:F$101,4,FALSE),0) -> 0 | F57: =IFERROR(VLOOKUP(A57,'Seznam dílů'!A$2:E$101,5,FALSE),0) -> 0 | G57: =IFERROR(C57*((VLOOKUP(A57,'Seznam dílů'!A$2:F$101,6,FALSE)+7)),0) -> 0
B58: =IF(A58=0,"",(VLOOKUP(A58,'Seznam dílů'!$A$2:$B$111,2,FALSE))) ->  | D58: =IF(A58=0,0,(C58*VLOOKUP(A58,'Seznam dílů'!$A$2:$C$111,3,FALSE)+2700)) -> 0 | E58: =IFERROR(VLOOKUP(A58,'Seznam dílů'!A$2:F$101,4,FALSE),0) -> 0 | F58: =IFERROR(VLOOKUP(A58,'Seznam dílů'!A$2:E$101,5,FALSE),0) -> 0 | G58: =IFERROR(C58*((VLOOKUP(A58,'Seznam dílů'!A$2:F$101,6,FALSE)+7)),0) -> 0
B59: =IF(A59=0,"",(VLOOKUP(A59,'Seznam dílů'!$A$2:$B$111,2,FALSE))) ->  | D59: =IF(A59=0,0,(C59*VLOOKUP(A59,'Seznam dílů'!$A$2:$C$111,3,FALSE)+2700)) -> 0 | E59: =IFERROR(VLOOKUP(A59,'Seznam dílů'!A$2:F$101,4,FALSE),0) -> 0 | F59: =IFERROR(VLOOKUP(A59,'Seznam dílů'!A$2:E$101,5,FALSE),0) -> 0 | G59: =IFERROR(C59*((VLOOKUP(A59,'Seznam dílů'!A$2:F$101,6,FALSE)+7)),0) -> 0
C61: CELKEM (s) : | D61: =SUM(D5:D60) -> 20555
C62: CELKEM (min): | D62: =D61/60 -> 342.5833333
C63: CELKEM (h) | D63: =D61/3600 -> 5.709722222

Sheet Seznam materiálu
A1: Materiál k objednávce číslo: | G1: Datum:
A3: ZPĚT NA VÝPOČET KAPACIT - KLIKNI
A4: =IFERROR(IF(B4>0,"Průměr",0),0) -> Průměr | B4: =IF(IFERROR((VLOOKUP(Průměry!A1,'Výpočet kapacit'!E5:E59,1,FALSE)),0)=Průměry!A1,Průměry!A1,IF(IFERROR(VLOOKUP(Průměry!A2,'Výpočet kapacit'!E5:E59,1,FALSE),0)=Průměry!A2,Průměry!A2,IF(IFERROR(VLOOKUP(Průměry!A3,'Výpočet kapacit'!E5:E59,1,FALSE),0)=Průměry!A3,Průměry!A3,IF(IFERROR(VLOOKUP(Průměry!A4,'Výpočet kapacit'!E5:E59,1,FALSE),0)=Průměry!A4,Průměry!A4,IF(IFERROR(VLOOKUP(Průměry!A5,'Výpočet kapacit'!E5:E59,1,FALSE),0)=Průměry!A5,Průměry!A5,IF(IFERROR(VLOOKUP(Průměry!A6,'Výpočet kapacit'!E5:E59,1,FALSE),0)=Průměry!A6,Průměry!A6,IF(IFERROR(VLOOKUP(Průměry!A7,'Výpočet kapacit'!E5:E59,1,FALSE),0)=Průměry!A7,Průměry!A7,IF(IFERROR(VLOOKUP(Průměry!A8,'Výpočet kapacit'!E5:E59,1,FALSE),0)=Průměry!A8,Průměry!A8,IF(IFERROR(VLOOKUP(Průměry!A9,'Výpočet kapacit'!E5:E59,1,FALSE),0)=Průměry!A9,Průměry!A8,0))))))))) -> 4301 | D4: =IFERROR(IF(E4>0,"Průměr",0),0) -> Průměr | E4: =IF(B4=0,0,IF(Průměry!F3>0,Průměry!F3,IF(Průměry!F4>0,Průměry!F4,IF(Průměry!F5>0,Průměry!F5,IF(Průměry!F6>0,Průměry!F6,IF(Průměry!F7>0,Průměry!F7,IF(Průměry!F8>0,Průměry!F8,IF(Průměry!F9>0,Průměry!F9,IF(Průměry!F10>0,Průměry!F10,0))))))))) -> 4305 | G4: =IFERROR(IF(H4>0,"Průměr",0),0) -> Průměr | H4: =IF(E4=0,0,IF(Průměry!G3>0,Průměry!G3,IF(Průměry!G4>0,Průměry!G4,IF(Průměry!G5>0,Průměry!G5,IF(Průměry!G6>0,Průměry!G6,IF(Průměry!G7>0,Průměry!G7,IF(Průměry!G8>0,Průměry!G8,IF(Průměry!G9>0,Průměry!G9,0)))))))) -> 11373 | J4: =IFERROR(IF(K4>0,"Průměr",0),0) -> 0 | K4: =IF(H4=0,0,IF(Průměry!H3>0,Průměry!H3,IF(Průměry!H4>0,Průměry!H4,IF(Průměry!H5>0,Průměry!H5,IF(Průměry!H6>0,Průměry!H6,IF(Průměry!H7>0,Průměry!H7,IF(Průměry!H8>0,Průměry!H8,0))))))) -> 0 | M4: =IFERROR(IF(N4>0,"Průměr",0),0) -> 0 | N4: =IF(K4=0,0,IF(Průměry!I3>0,Průměry!I3,IF(Průměry!I4>0,Průměry!I4,IF(Průměry!I5>0,Průměry!I5,IF(Průměry!I6>0,Průměry!I6,IF(Průměry!I7>0,Průměry!I7,0)))))) -> 0 | P4: =IFERROR(IF(Q4>0,"Průměr",0),0) -> 0 | Q4: =IF(N4=0,0,IF(Průměry!J3>0,Průměry!J3,IF(Průměry!J4>0,Průměry!J4,IF(Průměry!J5>0,Průměry!J5,IF(Průměry!J6>0,Průměry!J6,0))))) -> 0 | S4: =IFERROR(IF(T4>0,"Průměr",0),0) -> 0 | T4: =IF(Q4=0,0,IF(Průměry!K3>0,Průměry!K3,IF(Průměry!K4>0,Průměry!K4,IF(Průměry!K5>0,Průměry!K5,0)))) -> 0 | V4: =IFERROR(IF(W4>0,"Průměr",0),0) -> 0 | W4: =IF(T4=0,0,Průměry!L3) -> 0
A7: =IF(B7>0,"Jakost",0) -> Jakost | B7: =B4 -> 4301 | D7: =IF(E7>0,"Jakost",0) -> Jakost | E7: =IF(E4=B4,0,E4) -> 4305 | G7: =IF(H7>0,"Jakost",0) -> Jakost | H7: =IF(H4=E4,0,IF(H4=B4,0,H4)) -> 11373 | J7: =IF(K7>0,"Jakost",0) -> 0 | K7: =IF(H7=0,0,IF(K4=E4,0,IF(K4=H4,0,K4))) -> 0 | M7: =IF(N7>0,"Jakost",0) -> 0 | N7: =IF(K7=0,0,IF(N4=H4,0,IF(N4=K4,0,N4))) -> 0 | P7: =IF(Q7>0,"Jakost",0) -> 0 | Q7: =IF(N7=0,0,IF(Q4=K4,0,IF(Q4=N4,0,Q4))) -> 0 | S7: =IF(T7>0,"Jakost",0) -> 0 | T7: =IF(Q7=0,0,IF(T4=N4,0,IF(T4=Q4,0,T4))) -> 0 | V7: =IF(W7>0,"Jakost",0) -> 0 | W7: =IF(T7=0,0,IF(W4=Q4,0,IF(W4=T4,0,W4))) -> 0
A8: =A4 -> Průměr | B8: =IF(B4>0,"Potřebná délka [m]",0) -> Potřebná délka [m] | D8: =IF(E7>0,"Průměr",0) -> Průměr | E8: =IF(E4>0,"Potřebná délka [m]",0) -> Potřebná délka [m] | G8: =IF(H7>0,"Průměr",0) -> Průměr | H8: =IF(H4>0,"Potřebná délka [m]",0) -> Potřebná délka [m] | J8: =IF(K7>0,"Průměr",0) -> 0 | K8: =IF(K4>0,"Potřebná délka [m]",0) -> 0 | M8: =IF(N7>0,"Průměr",0) -> 0 | N8: =IF(N4>0,"Potřebná délka [m]",0) -> 0 | P8: =IF(Q7>0,"Průměr",0) -> 0 | Q8: =IF(Q4>0,"Potřebná délka [m]",0) -> 0 | S8: =IF(T7>0,"Průměr",0) -> 0 | T8: =IF(T4>0,"Potřebná délka [m]",0) -> 0 | V8: =IF(W7>0,"Průměr",0) -> 0 | W8: =IF(W4>0,"Potřebná délka [m]",0) -> 0
A9: =IFERROR(INDEX('Výpočet kapacit'!$F$5:$F$59,MATCH(1,('Výpočet kapacit'!$E$5:$E$59=B$7)*(COUNTIF(A$8:A8,'Výpočet kapacit'!$F$5:$F$59)=0),0)),"") -> 16 | B9: =SUMIFS('Výpočet kapacit'!$G$5:$G$59,'Výpočet kapacit'!$F$5:$F$59,A9,'Výpočet kapacit'!$E$5:$E$59,B$7)/1000 -> 0.032 | D9: =IFERROR(INDEX('Výpočet kapacit'!$F$5:$F$59,MATCH(1,('Výpočet kapacit'!$E$5:$E$59=E$7)*(COUNTIF(D$8:D8,'Výpočet kapacit'!$F$5:$F$59)=0),0)),"") -> 10 | E9: =SUMIFS('Výpočet kapacit'!$G$5:$G$59,'Výpočet kapacit'!$F$5:$F$59,D9,'Výpočet kapacit'!$E$5:$E$59,E$7)/1000 -> 0.213 | G9: =IFERROR(INDEX('Výpočet kapacit'!$F$5:$F$59,MATCH(1,('Výpočet kapacit'!$E$5:$E$59=H$7)*(COUNTIF(G$8:G8,'Výpočet kapacit'!$F$5:$F$59)=0),0)),"") -> 45x5 | H9: =SUMIFS('Výpočet kapacit'!$G$5:$G$59,'Výpočet kapacit'!$F$5:$F$59,G9,'Výpočet kapacit'!$E$5:$E$59,H$7)/1000 -> 0.642 | J9: =IFERROR(INDEX('Výpočet kapacit'!$F$5:$F$59,MATCH(1,('Výpočet kapacit'!$E$5:$E$59=K$7)*(COUNTIF(J$8:J8,'Výpočet kapacit'!$F$5:$F$59)=0),0)),"") ->  | K9: =SUMIFS('Výpočet kapacit'!$G$5:$G$59,'Výpočet kapacit'!$F$5:$F$59,J9,'Výpočet kapacit'!$E$5:$E$59,K$7)/1000 -> 0 | M9: =IFERROR(INDEX('Výpočet kapacit'!$F$5:$F$59,MATCH(1,('Výpočet kapacit'!$E$5:$E$59=N$7)*(COUNTIF(M$8:M8,'Výpočet kapacit'!$F$5:$F$59)=0),0)),"") ->  | N9: =SUMIFS('Výpočet kapacit'!$G$5:$G$59,'Výpočet kapacit'!$F$5:$F$59,M9,'Výpočet kapacit'!$E$5:$E$59,N$7)/1000 -> 0 | P9: =IFERROR(INDEX('Výpočet kapacit'!$F$5:$F$59,MATCH(1,('Výpočet kapacit'!$E$5:$E$59=Q$7)*(COUNTIF(P$8:P8,'Výpočet kapacit'!$F$5:$F$59)=0),0)),"") ->  | Q9: =SUMIFS('Výpočet kapacit'!$G$5:$G$59,'Výpočet kapacit'!$F$5:$F$59,P9,'Výpočet kapacit'!$E$5:$E$59,Q$7)/1000 -> 0 | S9: =IFERROR(INDEX('Výpočet kapacit'!$F$5:$F$59,MATCH(1,('Výpočet kapacit'!$E$5:$E$59=T$7)*(COUNTIF(S$8:S8,'Výpočet kapacit'!$F$5:$F$59)=0),0)),"") ->  | T9: =SUMIFS('Výpočet kapacit'!$G$5:$G$59,'Výpočet kapacit'!$F$5:$F$59,S9,'Výpočet kapacit'!$E$5:$E$59,T$7)/1000 -> 0 | V9: =IFERROR(INDEX('Výpočet kapacit'!$F$5:$F$59,MATCH(1,('Výpočet kapacit'!$E$5:$E$59=W$7)*(COUNTIF(V$8:V8,'Výpočet kapacit'!$F$5:$F$59)=0),0)),"") ->  | W9: =SUMIFS('Výpočet kapacit'!$G$5:$G$59,'Výpočet kapacit'!$F$5:$F$59,V9,'Výpočet kapacit'!$E$5:$E$59,W$7)/1000 -> 0
A10: =IFERROR(INDEX('Výpočet kapacit'!$F$5:$F$59,MATCH(1,('Výpočet kapacit'!$E$5:$E$59=B$7)*(COUNTIF(A$8:A9,'Výpočet kapacit'!$F$5:$F$59)=0),0)),"") -> 8 | B10: =SUMIFS('Výpočet kapacit'!$G$5:$G$59,'Výpočet kapacit'!$F$5:$F$59,A10,'Výpočet kapacit'!$E$5:$E$59,B$7)/1000 -> 0.044 | D10: =IFERROR(INDEX('Výpočet kapacit'!$F$5:$F$59,MATCH(1,('Výpočet kapacit'!$E$5:$E$59=E$7)*(COUNTIF(D$8:D9,'Výpočet kapacit'!$F$5:$F$59)=0),0)),"") -> 15 | E10: =SUMIFS('Výpočet kapacit'!$G$5:$G$59,'Výpočet kapacit'!$F$5:$F$59,D10,'Výpočet kapacit'!$E$5:$E$59,E$7)/1000 -> 0.34 | G10: =IFERROR(INDEX('Výpočet kapacit'!$F$5:$F$59,MATCH(1,('Výpočet kapacit'!$E$5:$E$59=H$7)*(COUNTIF(G$8:G9,'Výpočet kapacit'!$F$5:$F$59)=0),0)),"") ->  | H10: =SUMIFS('Výpočet kapacit'!$G$5:$G$59,'Výpočet kapacit'!$F$5:$F$59,G10,'Výpočet kapacit'!$E$5:$E$59,H$7)/1000 -> 0 | J10: =IFERROR(INDEX('Výpočet kapacit'!$F$5:$F$59,MATCH(1,('Výpočet kapacit'!$E$5:$E$59=K$7)*(COUNTIF(J$8:J9,'Výpočet kapacit'!$F$5:$F$59)=0),0)),"") ->  | K10: =SUMIFS('Výpočet kapacit'!$G$5:$G$59,'Výpočet kapacit'!$F$5:$F$59,J10,'Výpočet kapacit'!$E$5:$E$59,K$7)/1000 -> 0 | M10: =IFERROR(INDEX('Výpočet kapacit'!$F$5:$F$59,MATCH(1,('Výpočet kapacit'!$E$5:$E$59=N$7)*(COUNTIF(M$8:M9,'Výpočet kapacit'!$F$5:$F$59)=0),0)),"") ->  | N10: =SUMIFS('Výpočet kapacit'!$G$5:$G$59,'Výpočet kapacit'!$F$5:$F$59,M10,'Výpočet kapacit'!$E$5:$E$59,N$7)/1000 -> 0 | P10: =IFERROR(INDEX('Výpočet kapacit'!$F$5:$F$59,MATCH(1,('Výpočet kapacit'!$E$5:$E$59=Q$7)*(COUNTIF(P$8:P9,'Výpočet kapacit'!$F$5:$F$59)=0),0)),"") ->  | Q10: =SUMIFS('Výpočet kapacit'!$G$5:$G$59,'Výpočet kapacit'!$F$5:$F$59,P10,'Výpočet kapacit'!$E$5:$E$59,Q$7)/1000 -> 0 | S10: =IFERROR(INDEX('Výpočet kapacit'!$F$5:$F$59,MATCH(1,('Výpočet kapacit'!$E$5:$E$59=T$7)*(COUNTIF(S$8:S9,'Výpočet kapacit'!$F$5:$F$59)=0),0)),"") ->  | T10: =SUMIFS('Výpočet kapacit'!$G$5:$G$59,'Výpočet kapacit'!$F$5:$F$59,S10,'Výpočet kapacit'!$E$5:$E$59,T$7)/1000 -> 0 | V10: =IFERROR(INDEX('Výpočet kapacit'!$F$5:$F$59,MATCH(1,('Výpočet kapacit'!$E$5:$E$59=W$7)*(COUNTIF(V$8:V9,'Výpočet kapacit'!$F$5:$F$59)=0),0)),"") ->  | W10: =SUMIFS('Výpočet kapacit'!$G$5:$G$59,'Výpočet kapacit'!$F$5:$F$59,V10,'Výpočet kapacit'!$E$5:$E$59,W$7)/1000 -> 0
A11: =IFERROR(INDEX('Výpočet kapacit'!$F$5:$F$59,MATCH(1,('Výpočet kapacit'!$E$5:$E$59=B$7)*(COUNTIF(A$8:A10,'Výpočet kapacit'!$F$5:$F$59)=0),0)),"") -> 10 | B11: =SUMIFS('Výpočet kapacit'!$G$5:$G$59,'Výpočet kapacit'!$F$5:$F$59,A11,'Výpočet kapacit'!$E$5:$E$59,B$7)/1000 -> 0.347 | D11: =IFERROR(INDEX('Výpočet kapacit'!$F$5:$F$59,MATCH(1,('Výpočet kapacit'!$E$5:$E$59=E$7)*(COUNTIF(D$8:D10,'Výpočet kapacit'!$F$5:$F$59)=0),0)),"") ->  | E11: =SUMIFS('Výpočet kapacit'!$G$5:$G$59,'Výpočet kapacit'!$F$5:$F$59,D11,'Výpočet kapacit'!$E$5:$E$59,E$7)/1000 -> 0 | G11: =IFERROR(INDEX('Výpočet kapacit'!$F$5:$F$59,MATCH(1,('Výpočet kapacit'!$E$5:$E$59=H$7)*(COUNTIF(G$8:G10,'Výpočet kapacit'!$F$5:$F$59)=0),0)),"") ->  | H11: =SUMIFS('Výpočet kapacit'!$G$5:$G$59,'Výpočet kapacit'!$F$5:$F$59,G11,'Výpočet kapacit'!$E$5:$E$59,H$7)/1000 -> 0 | J11: =IFERROR(INDEX('Výpočet kapacit'!$F$5:$F$59,MATCH(1,('Výpočet kapacit'!$E$5:$E$59=K$7)*(COUNTIF(J$8:J10,'Výpočet kapacit'!$F$5:$F$59)=0),0)),"") ->  | K11: =SUMIFS('Výpočet kapacit'!$G$5:$G$59,'Výpočet kapacit'!$F$5:$F$59,J11,'Výpočet kapacit'!$E$5:$E$59,K$7)/1000 -> 0 | M11: =IFERROR(INDEX('Výpočet kapacit'!$F$5:$F$59,MATCH(1,('Výpočet kapacit'!$E$5:$E$59=N$7)*(COUNTIF(M$8:M10,'Výpočet kapacit'!$F$5:$F$59)=0),0)),"") ->  | N11: =SUMIFS('Výpočet kapacit'!$G$5:$G$59,'Výpočet kapacit'!$F$5:$F$59,M11,'Výpočet kapacit'!$E$5:$E$59,N$7)/1000 -> 0 | P11: =IFERROR(INDEX('Výpočet kapacit'!$F$5:$F$59,MATCH(1,('Výpočet kapacit'!$E$5:$E$59=Q$7)*(COUNTIF(P$8:P10,'Výpočet kapacit'!$F$5:$F$59)=0),0)),"") ->  | Q11: =SUMIFS('Výpočet kapacit'!$G$5:$G$59,'Výpočet kapacit'!$F$5:$F$59,P11,'Výpočet kapacit'!$E$5:$E$59,Q$7)/1000 -> 0 | S11: =IFERROR(INDEX('Výpočet kapacit'!$F$5:$F$59,MATCH(1,('Výpočet kapacit'!$E$5:$E$59=T$7)*(COUNTIF(S$8:S10,'Výpočet kapacit'!$F$5:$F$59)=0),0)),"") ->  | T11: =SUMIFS('Výpočet kapacit'!$G$5:$G$59,'Výpočet kapacit'!$F$5:$F$59,S11,'Výpočet kapacit'!$E$5:$E$59,T$7)/1000 -> 0 | V11: =IFERROR(INDEX('Výpočet kapacit'!$F$5:$F$59,MATCH(1,('Výpočet kapacit'!$E$5:$E$59=W$7)*(COUNTIF(V$8:V10,'Výpočet kapacit'!$F$5:$F$59)=0),0)),"") ->  | W11: =SUMIFS('Výpočet kapacit'!$G$5:$G$59,'Výpočet kapacit'!$F$5:$F$59,V11,'Výpočet kapacit'!$E$5:$E$59,W$7)/1000 -> 0
A12: =IFERROR(INDEX('Výpočet kapacit'!$F$5:$F$59,MATCH(1,('Výpočet kapacit'!$E$5:$E$59=B$7)*(COUNTIF(A$8:A11,'Výpočet kapacit'!$F$5:$F$59)=0),0)),"") ->  | B12: =SUMIFS('Výpočet kapacit'!$G$5:$G$59,'Výpočet kapacit'!$F$5:$F$59,A12,'Výpočet kapacit'!$E$5:$E$59,B$7)/1000 -> 0 | D12: =IFERROR(INDEX('Výpočet kapacit'!$F$5:$F$59,MATCH(1,('Výpočet kapacit'!$E$5:$E$59=E$7)*(COUNTIF(D$8:D11,'Výpočet kapacit'!$F$5:$F$59)=0),0)),"") ->  | E12: =SUMIFS('Výpočet kapacit'!$G$5:$G$59,'Výpočet kapacit'!$F$5:$F$59,D12,'Výpočet kapacit'!$E$5:$E$59,E$7)/1000 -> 0 | G12: =IFERROR(INDEX('Výpočet kapacit'!$F$5:$F$59,MATCH(1,('Výpočet kapacit'!$E$5:$E$59=H$7)*(COUNTIF(G$8:G11,'Výpočet kapacit'!$F$5:$F$59)=0),0)),"") ->  | H12: =SUMIFS('Výpočet kapacit'!$G$5:$G$59,'Výpočet kapacit'!$F$5:$F$59,G12,'Výpočet kapacit'!$E$5:$E$59,H$7)/1000 -> 0 | J12: =IFERROR(INDEX('Výpočet kapacit'!$F$5:$F$59,MATCH(1,('Výpočet kapacit'!$E$5:$E$59=K$7)*(COUNTIF(J$8:J11,'Výpočet kapacit'!$F$5:$F$59)=0),0)),"") ->  | K12: =SUMIFS('Výpočet kapacit'!$G$5:$G$59,'Výpočet kapacit'!$F$5:$F$59,J12,'Výpočet kapacit'!$E$5:$E$59,K$7)/1000 -> 0 | M12: =IFERROR(INDEX('Výpočet kapacit'!$F$5:$F$59,MATCH(1,('Výpočet kapacit'!$E$5:$E$59=N$7)*(COUNTIF(M$8:M11,'Výpočet kapacit'!$F$5:$F$59)=0),0)),"") ->  | N12: =SUMIFS('Výpočet kapacit'!$G$5:$G$59,'Výpočet kapacit'!$F$5:$F$59,M12,'Výpočet kapacit'!$E$5:$E$59,N$7)/1000 -> 0 | P12: =IFERROR(INDEX('Výpočet kapacit'!$F$5:$F$59,MATCH(1,('Výpočet kapacit'!$E$5:$E$59=Q$7)*(COUNTIF(P$8:P11,'Výpočet kapacit'!$F$5:$F$59)=0),0)),"") ->  | Q12: =SUMIFS('Výpočet kapacit'!$G$5:$G$59,'Výpočet kapacit'!$F$5:$F$59,P12,'Výpočet kapacit'!$E$5:$E$59,Q$7)/1000 -> 0 | S12: =IFERROR(INDEX('Výpočet kapacit'!$F$5:$F$59,MATCH(1,('Výpočet kapacit'!$E$5:$E$59=T$7)*(COUNTIF(S$8:S11,'Výpočet kapacit'!$F$5:$F$59)=0),0)),"") ->  | T12: =SUMIFS('Výpočet kapacit'!$G$5:$G$59,'Výpočet kapacit'!$F$5:$F$59,S12,'Výpočet kapacit'!$E$5:$E$59,T$7)/1000 -> 0 | V12: =IFERROR(INDEX('Výpočet kapacit'!$F$5:$F$59,MATCH(1,('Výpočet kapacit'!$E$5:$E$59=W$7)*(COUNTIF(V$8:V11,'Výpočet kapacit'!$F$5:$F$59)=0),0)),"") ->  | W12: =SUMIFS('Výpočet kapacit'!$G$5:$G$59,'Výpočet kapacit'!$F$5:$F$59,V12,'Výpočet kapacit'!$E$5:$E$59,W$7)/1000 -> 0
A13: =IFERROR(INDEX('Výpočet kapacit'!$F$5:$F$59,MATCH(1,('Výpočet kapacit'!$E$5:$E$59=B$7)*(COUNTIF(A$8:A12,'Výpočet kapacit'!$F$5:$F$59)=0),0)),"") ->  | B13: =SUMIFS('Výpočet kapacit'!$G$5:$G$59,'Výpočet kapacit'!$F$5:$F$59,A13,'Výpočet kapacit'!$E$5:$E$59,B$7)/1000 -> 0 | D13: =IFERROR(INDEX('Výpočet kapacit'!$F$5:$F$59,MATCH(1,('Výpočet kapacit'!$E$5:$E$59=E$7)*(COUNTIF(D$8:D12,'Výpočet kapacit'!$F$5:$F$59)=0),0)),"") ->  | E13: =SUMIFS('Výpočet kapacit'!$G$5:$G$59,'Výpočet kapacit'!$F$5:$F$59,D13,'Výpočet kapacit'!$E$5:$E$59,E$7)/1000 -> 0 | G13: =IFERROR(INDEX('Výpočet kapacit'!$F$5:$F$59,MATCH(1,('Výpočet kapacit'!$E$5:$E$59=H$7)*(COUNTIF(G$8:G12,'Výpočet kapacit'!$F$5:$F$59)=0),0)),"") ->  | H13: =SUMIFS('Výpočet kapacit'!$G$5:$G$59,'Výpočet kapacit'!$F$5:$F$59,G13,'Výpočet kapacit'!$E$5:$E$59,H$7)/1000 -> 0 | J13: =IFERROR(INDEX('Výpočet kapacit'!$F$5:$F$59,MATCH(1,('Výpočet kapacit'!$E$5:$E$59=K$7)*(COUNTIF(J$8:J12,'Výpočet kapacit'!$F$5:$F$59)=0),0)),"") ->  | K13: =SUMIFS('Výpočet kapacit'!$G$5:$G$59,'Výpočet kapacit'!$F$5:$F$59,J13,'Výpočet kapacit'!$E$5:$E$59,K$7)/1000 -> 0 | M13: =IFERROR(INDEX('Výpočet kapacit'!$F$5:$F$59,MATCH(1,('Výpočet kapacit'!$E$5:$E$59=N$7)*(COUNTIF(M$8:M12,'Výpočet kapacit'!$F$5:$F$59)=0),0)),"") ->  | N13: =SUMIFS('Výpočet kapacit'!$G$5:$G$59,'Výpočet kapacit'!$F$5:$F$59,M13,'Výpočet kapacit'!$E$5:$E$59,N$7)/1000 -> 0 | P13: =IFERROR(INDEX('Výpočet kapacit'!$F$5:$F$59,MATCH(1,('Výpočet kapacit'!$E$5:$E$59=Q$7)*(COUNTIF(P$8:P12,'Výpočet kapacit'!$F$5:$F$59)=0),0)),"") ->  | Q13: =SUMIFS('Výpočet kapacit'!$G$5:$G$59,'Výpočet kapacit'!$F$5:$F$59,P13,'Výpočet kapacit'!$E$5:$E$59,Q$7)/1000 -> 0 | S13: =IFERROR(INDEX('Výpočet kapacit'!$F$5:$F$59,MATCH(1,('Výpočet kapacit'!$E$5:$E$59=T$7)*(COUNTIF(S$8:S12,'Výpočet kapacit'!$F$5:$F$59)=0),0)),"") ->  | T13: =SUMIFS('Výpočet kapacit'!$G$5:$G$59,'Výpočet kapacit'!$F$5:$F$59,S13,'Výpočet kapacit'!$E$5:$E$59,T$7)/1000 -> 0 | V13: =IFERROR(INDEX('Výpočet kapacit'!$F$5:$F$59,MATCH(1,('Výpočet kapacit'!$E$5:$E$59=W$7)*(COUNTIF(V$8:V12,'Výpočet kapacit'!$F$5:$F$59)=0),0)),"") ->  | W13: =SUMIFS('Výpočet kapacit'!$G$5:$G$59,'Výpočet kapacit'!$F$5:$F$59,V13,'Výpočet kapacit'!$E$5:$E$59,W$7)/1000 -> 0
A14: =IFERROR(INDEX('Výpočet kapacit'!$F$5:$F$59,MATCH(1,('Výpočet kapacit'!$E$5:$E$59=B$7)*(COUNTIF(A$8:A13,'Výpočet kapacit'!$F$5:$F$59)=0),0)),"") ->  | B14: =SUMIFS('Výpočet kapacit'!$G$5:$G$59,'Výpočet kapacit'!$F$5:$F$59,A14,'Výpočet kapacit'!$E$5:$E$59,B$7)/1000 -> 0 | D14: =IFERROR(INDEX('Výpočet kapacit'!$F$5:$F$59,MATCH(1,('Výpočet kapacit'!$E$5:$E$59=E$7)*(COUNTIF(D$8:D13,'Výpočet kapacit'!$F$5:$F$59)=0),0)),"") ->  | E14: =SUMIFS('Výpočet kapacit'!$G$5:$G$59,'Výpočet kapacit'!$F$5:$F$59,D14,'Výpočet kapacit'!$E$5:$E$59,E$7)/1000 -> 0 | G14: =IFERROR(INDEX('Výpočet kapacit'!$F$5:$F$59,MATCH(1,('Výpočet kapacit'!$E$5:$E$59=H$7)*(COUNTIF(G$8:G13,'Výpočet kapacit'!$F$5:$F$59)=0),0)),"") ->  | H14: =SUMIFS('Výpočet kapacit'!$G$5:$G$59,'Výpočet kapacit'!$F$5:$F$59,G14,'Výpočet kapacit'!$E$5:$E$59,H$7)/1000 -> 0 | J14: =IFERROR(INDEX('Výpočet kapacit'!$F$5:$F$59,MATCH(1,('Výpočet kapacit'!$E$5:$E$59=K$7)*(COUNTIF(J$8:J13,'Výpočet kapacit'!$F$5:$F$59)=0),0)),"") ->  | K14: =SUMIFS('Výpočet kapacit'!$G$5:$G$59,'Výpočet kapacit'!$F$5:$F$59,J14,'Výpočet kapacit'!$E$5:$E$59,K$7)/1000 -> 0 | M14: =IFERROR(INDEX('Výpočet kapacit'!$F$5:$F$59,MATCH(1,('Výpočet kapacit'!$E$5:$E$59=N$7)*(COUNTIF(M$8:M13,'Výpočet kapacit'!$F$5:$F$59)=0),0)),"") ->  | N14: =SUMIFS('Výpočet kapacit'!$G$5:$G$59,'Výpočet kapacit'!$F$5:$F$59,M14,'Výpočet kapacit'!$E$5:$E$59,N$7)/1000 -> 0 | P14: =IFERROR(INDEX('Výpočet kapacit'!$F$5:$F$59,MATCH(1,('Výpočet kapacit'!$E$5:$E$59=Q$7)*(COUNTIF(P$8:P13,'Výpočet kapacit'!$F$5:$F$59)=0),0)),"") ->  | Q14: =SUMIFS('Výpočet kapacit'!$G$5:$G$59,'Výpočet kapacit'!$F$5:$F$59,P14,'Výpočet kapacit'!$E$5:$E$59,Q$7)/1000 -> 0 | S14: =IFERROR(INDEX('Výpočet kapacit'!$F$5:$F$59,MATCH(1,('Výpočet kapacit'!$E$5:$E$59=T$7)*(COUNTIF(S$8:S13,'Výpočet kapacit'!$F$5:$F$59)=0),0)),"") ->  | T14: =SUMIFS('Výpočet kapacit'!$G$5:$G$59,'Výpočet kapacit'!$F$5:$F$59,S14,'Výpočet kapacit'!$E$5:$E$59,T$7)/1000 -> 0 | V14: =IFERROR(INDEX('Výpočet kapacit'!$F$5:$F$59,MATCH(1,('Výpočet kapacit'!$E$5:$E$59=W$7)*(COUNTIF(V$8:V13,'Výpočet kapacit'!$F$5:$F$59)=0),0)),"") ->  | W14: =SUMIFS('Výpočet kapacit'!$G$5:$G$59,'Výpočet kapacit'!$F$5:$F$59,V14,'Výpočet kapacit'!$E$5:$E$59,W$7)/1000 -> 0
A15: =IFERROR(INDEX('Výpočet kapacit'!$F$5:$F$59,MATCH(1,('Výpočet kapacit'!$E$5:$E$59=B$7)*(COUNTIF(A$8:A14,'Výpočet kapacit'!$F$5:$F$59)=0),0)),"") ->  | B15: =SUMIFS('Výpočet kapacit'!$G$5:$G$59,'Výpočet kapacit'!$F$5:$F$59,A15,'Výpočet kapacit'!$E$5:$E$59,B$7)/1000 -> 0 | D15: =IFERROR(INDEX('Výpočet kapacit'!$F$5:$F$59,MATCH(1,('Výpočet kapacit'!$E$5:$E$59=E$7)*(COUNTIF(D$8:D14,'Výpočet kapacit'!$F$5:$F$59)=0),0)),"") ->  | E15: =SUMIFS('Výpočet kapacit'!$G$5:$G$59,'Výpočet kapacit'!$F$5:$F$59,D15,'Výpočet kapacit'!$E$5:$E$59,E$7)/1000 -> 0 | G15: =IFERROR(INDEX('Výpočet kapacit'!$F$5:$F$59,MATCH(1,('Výpočet kapacit'!$E$5:$E$59=H$7)*(COUNTIF(G$8:G14,'Výpočet kapacit'!$F$5:$F$59)=0),0)),"") ->  | H15: =SUMIFS('Výpočet kapacit'!$G$5:$G$59,'Výpočet kapacit'!$F$5:$F$59,G15,'Výpočet kapacit'!$E$5:$E$59,H$7)/1000 -> 0 | J15: =IFERROR(INDEX('Výpočet kapacit'!$F$5:$F$59,MATCH(1,('Výpočet kapacit'!$E$5:$E$59=K$7)*(COUNTIF(J$8:J14,'Výpočet kapacit'!$F$5:$F$59)=0),0)),"") ->  | K15: =SUMIFS('Výpočet kapacit'!$G$5:$G$59,'Výpočet kapacit'!$F$5:$F$59,J15,'Výpočet kapacit'!$E$5:$E$59,K$7)/1000 -> 0 | M15: =IFERROR(INDEX('Výpočet kapacit'!$F$5:$F$59,MATCH(1,('Výpočet kapacit'!$E$5:$E$59=N$7)*(COUNTIF(M$8:M14,'Výpočet kapacit'!$F$5:$F$59)=0),0)),"") ->  | N15: =SUMIFS('Výpočet kapacit'!$G$5:$G$59,'Výpočet kapacit'!$F$5:$F$59,M15,'Výpočet kapacit'!$E$5:$E$59,N$7)/1000 -> 0 | P15: =IFERROR(INDEX('Výpočet kapacit'!$F$5:$F$59,MATCH(1,('Výpočet kapacit'!$E$5:$E$59=Q$7)*(COUNTIF(P$8:P14,'Výpočet kapacit'!$F$5:$F$59)=0),0)),"") ->  | Q15: =SUMIFS('Výpočet kapacit'!$G$5:$G$59,'Výpočet kapacit'!$F$5:$F$59,P15,'Výpočet kapacit'!$E$5:$E$59,Q$7)/1000 -> 0 | S15: =IFERROR(INDEX('Výpočet kapacit'!$F$5:$F$59,MATCH(1,('Výpočet kapacit'!$E$5:$E$59=T$7)*(COUNTIF(S$8:S14,'Výpočet kapacit'!$F$5:$F$59)=0),0)),"") ->  | T15: =SUMIFS('Výpočet kapacit'!$G$5:$G$59,'Výpočet kapacit'!$F$5:$F$59,S15,'Výpočet kapacit'!$E$5:$E$59,T$7)/1000 -> 0 | V15: =IFERROR(INDEX('Výpočet kapacit'!$F$5:$F$59,MATCH(1,('Výpočet kapacit'!$E$5:$E$59=W$7)*(COUNTIF(V$8:V14,'Výpočet kapacit'!$F$5:$F$59)=0),0)),"") ->  | W15: =SUMIFS('Výpočet kapacit'!$G$5:$G$59,'Výpočet kapacit'!$F$5:$F$59,V15,'Výpočet kapacit'!$E$5:$E$59,W$7)/1000 -> 0
A16: =IFERROR(INDEX('Výpočet kapacit'!$F$5:$F$59,MATCH(1,('Výpočet kapacit'!$E$5:$E$59=B$7)*(COUNTIF(A$8:A15,'Výpočet kapacit'!$F$5:$F$59)=0),0)),"") ->  | B16: =SUMIFS('Výpočet kapacit'!$G$5:$G$59,'Výpočet kapacit'!$F$5:$F$59,A16,'Výpočet kapacit'!$E$5:$E$59,B$7)/1000 -> 0 | D16: =IFERROR(INDEX('Výpočet kapacit'!$F$5:$F$59,MATCH(1,('Výpočet kapacit'!$E$5:$E$59=E$7)*(COUNTIF(D$8:D15,'Výpočet kapacit'!$F$5:$F$59)=0),0)),"") ->  | E16: =SUMIFS('Výpočet kapacit'!$G$5:$G$59,'Výpočet kapacit'!$F$5:$F$59,D16,'Výpočet kapacit'!$E$5:$E$59,E$7)/1000 -> 0 | G16: =IFERROR(INDEX('Výpočet kapacit'!$F$5:$F$59,MATCH(1,('Výpočet kapacit'!$E$5:$E$59=H$7)*(COUNTIF(G$8:G15,'Výpočet kapacit'!$F$5:$F$59)=0),0)),"") ->  | H16: =SUMIFS('Výpočet kapacit'!$G$5:$G$59,'Výpočet kapacit'!$F$5:$F$59,G16,'Výpočet kapacit'!$E$5:$E$59,H$7)/1000 -> 0 | J16: =IFERROR(INDEX('Výpočet kapacit'!$F$5:$F$59,MATCH(1,('Výpočet kapacit'!$E$5:$E$59=K$7)*(COUNTIF(J$8:J15,'Výpočet kapacit'!$F$5:$F$59)=0),0)),"") ->  | K16: =SUMIFS('Výpočet kapacit'!$G$5:$G$59,'Výpočet kapacit'!$F$5:$F$59,J16,'Výpočet kapacit'!$E$5:$E$59,K$7)/1000 -> 0 | M16: =IFERROR(INDEX('Výpočet kapacit'!$F$5:$F$59,MATCH(1,('Výpočet kapacit'!$E$5:$E$59=N$7)*(COUNTIF(M$8:M15,'Výpočet kapacit'!$F$5:$F$59)=0),0)),"") ->  | N16: =SUMIFS('Výpočet kapacit'!$G$5:$G$59,'Výpočet kapacit'!$F$5:$F$59,M16,'Výpočet kapacit'!$E$5:$E$59,N$7)/1000 -> 0 | P16: =IFERROR(INDEX('Výpočet kapacit'!$F$5:$F$59,MATCH(1,('Výpočet kapacit'!$E$5:$E$59=Q$7)*(COUNTIF(P$8:P15,'Výpočet kapacit'!$F$5:$F$59)=0),0)),"") ->  | Q16: =SUMIFS('Výpočet kapacit'!$G$5:$G$59,'Výpočet kapacit'!$F$5:$F$59,P16,'Výpočet kapacit'!$E$5:$E$59,Q$7)/1000 -> 0 | S16: =IFERROR(INDEX('Výpočet kapacit'!$F$5:$F$59,MATCH(1,('Výpočet kapacit'!$E$5:$E$59=T$7)*(COUNTIF(S$8:S15,'Výpočet kapacit'!$F$5:$F$59)=0),0)),"") ->  | T16: =SUMIFS('Výpočet kapacit'!$G$5:$G$59,'Výpočet kapacit'!$F$5:$F$59,S16,'Výpočet kapacit'!$E$5:$E$59,T$7)/1000 -> 0 | V16: =IFERROR(INDEX('Výpočet kapacit'!$F$5:$F$59,MATCH(1,('Výpočet kapacit'!$E$5:$E$59=W$7)*(COUNTIF(V$8:V15,'Výpočet kapacit'!$F$5:$F$59)=0),0)),"") ->  | W16: =SUMIFS('Výpočet kapacit'!$G$5:$G$59,'Výpočet kapacit'!$F$5:$F$59,V16,'Výpočet kapacit'!$E$5:$E$59,W$7)/1000 -> 0
A17: =IFERROR(INDEX('Výpočet kapacit'!$F$5:$F$59,MATCH(1,('Výpočet kapacit'!$E$5:$E$59=B$7)*(COUNTIF(A$8:A16,'Výpočet kapacit'!$F$5:$F$59)=0),0)),"") ->  | B17: =SUMIFS('Výpočet kapacit'!$G$5:$G$59,'Výpočet kapacit'!$F$5:$F$59,A17,'Výpočet kapacit'!$E$5:$E$59,B$7)/1000 -> 0 | D17: =IFERROR(INDEX('Výpočet kapacit'!$F$5:$F$59,MATCH(1,('Výpočet kapacit'!$E$5:$E$59=E$7)*(COUNTIF(D$8:D16,'Výpočet kapacit'!$F$5:$F$59)=0),0)),"") ->  | E17: =SUMIFS('Výpočet kapacit'!$G$5:$G$59,'Výpočet kapacit'!$F$5:$F$59,D17,'Výpočet kapacit'!$E$5:$E$59,E$7)/1000 -> 0 | G17: =IFERROR(INDEX('Výpočet kapacit'!$F$5:$F$59,MATCH(1,('Výpočet kapacit'!$E$5:$E$59=H$7)*(COUNTIF(G$8:G16,'Výpočet kapacit'!$F$5:$F$59)=0),0)),"") ->  | H17: =SUMIFS('Výpočet kapacit'!$G$5:$G$59,'Výpočet kapacit'!$F$5:$F$59,G17,'Výpočet kapacit'!$E$5:$E$59,H$7)/1000 -> 0 | J17: =IFERROR(INDEX('Výpočet kapacit'!$F$5:$F$59,MATCH(1,('Výpočet kapacit'!$E$5:$E$59=K$7)*(COUNTIF(J$8:J16,'Výpočet kapacit'!$F$5:$F$59)=0),0)),"") ->  | K17: =SUMIFS('Výpočet kapacit'!$G$5:$G$59,'Výpočet kapacit'!$F$5:$F$59,J17,'Výpočet kapacit'!$E$5:$E$59,K$7)/1000 -> 0 | M17: =IFERROR(INDEX('Výpočet kapacit'!$F$5:$F$59,MATCH(1,('Výpočet kapacit'!$E$5:$E$59=N$7)*(COUNTIF(M$8:M16,'Výpočet kapacit'!$F$5:$F$59)=0),0)),"") ->  | N17: =SUMIFS('Výpočet kapacit'!$G$5:$G$59,'Výpočet kapacit'!$F$5:$F$59,M17,'Výpočet kapacit'!$E$5:$E$59,N$7)/1000 -> 0 | P17: =IFERROR(INDEX('Výpočet kapacit'!$F$5:$F$59,MATCH(1,('Výpočet kapacit'!$E$5:$E$59=Q$7)*(COUNTIF(P$8:P16,'Výpočet kapacit'!$F$5:$F$59)=0),0)),"") ->  | Q17: =SUMIFS('Výpočet kapacit'!$G$5:$G$59,'Výpočet kapacit'!$F$5:$F$59,P17,'Výpočet kapacit'!$E$5:$E$59,Q$7)/1000 -> 0 | S17: =IFERROR(INDEX('Výpočet kapacit'!$F$5:$F$59,MATCH(1,('Výpočet kapacit'!$E$5:$E$59=T$7)*(COUNTIF(S$8:S16,'Výpočet kapacit'!$F$5:$F$59)=0),0)),"") ->  | T17: =SUMIFS('Výpočet kapacit'!$G$5:$G$59,'Výpočet kapacit'!$F$5:$F$59,S17,'Výpočet kapacit'!$E$5:$E$59,T$7)/1000 -> 0 | V17: =IFERROR(INDEX('Výpočet kapacit'!$F$5:$F$59,MATCH(1,('Výpočet kapacit'!$E$5:$E$59=W$7)*(COUNTIF(V$8:V16,'Výpočet kapacit'!$F$5:$F$59)=0),0)),"") ->  | W17: =SUMIFS('Výpočet kapacit'!$G$5:$G$59,'Výpočet kapacit'!$F$5:$F$59,V17,'Výpočet kapacit'!$E$5:$E$59,W$7)/1000 -> 0
A18: =IFERROR(INDEX('Výpočet kapacit'!$F$5:$F$59,MATCH(1,('Výpočet kapacit'!$E$5:$E$59=B$7)*(COUNTIF(A$8:A17,'Výpočet kapacit'!$F$5:$F$59)=0),0)),"") ->  | B18: =SUMIFS('Výpočet kapacit'!$G$5:$G$59,'Výpočet kapacit'!$F$5:$F$59,A18,'Výpočet kapacit'!$E$5:$E$59,B$7)/1000 -> 0 | D18: =IFERROR(INDEX('Výpočet kapacit'!$F$5:$F$59,MATCH(1,('Výpočet kapacit'!$E$5:$E$59=E$7)*(COUNTIF(D$8:D17,'Výpočet kapacit'!$F$5:$F$59)=0),0)),"") ->  | E18: =SUMIFS('Výpočet kapacit'!$G$5:$G$59,'Výpočet kapacit'!$F$5:$F$59,D18,'Výpočet kapacit'!$E$5:$E$59,E$7)/1000 -> 0 | G18: =IFERROR(INDEX('Výpočet kapacit'!$F$5:$F$59,MATCH(1,('Výpočet kapacit'!$E$5:$E$59=H$7)*(COUNTIF(G$8:G17,'Výpočet kapacit'!$F$5:$F$59)=0),0)),"") ->  | H18: =SUMIFS('Výpočet kapacit'!$G$5:$G$59,'Výpočet kapacit'!$F$5:$F$59,G18,'Výpočet kapacit'!$E$5:$E$59,H$7)/1000 -> 0 | J18: =IFERROR(INDEX('Výpočet kapacit'!$F$5:$F$59,MATCH(1,('Výpočet kapacit'!$E$5:$E$59=K$7)*(COUNTIF(J$8:J17,'Výpočet kapacit'!$F$5:$F$59)=0),0)),"") ->  | K18: =SUMIFS('Výpočet kapacit'!$G$5:$G$59,'Výpočet kapacit'!$F$5:$F$59,J18,'Výpočet kapacit'!$E$5:$E$59,K$7)/1000 -> 0 | M18: =IFERROR(INDEX('Výpočet kapacit'!$F$5:$F$59,MATCH(1,('Výpočet kapacit'!$E$5:$E$59=N$7)*(COUNTIF(M$8:M17,'Výpočet kapacit'!$F$5:$F$59)=0),0)),"") ->  | N18: =SUMIFS('Výpočet kapacit'!$G$5:$G$59,'Výpočet kapacit'!$F$5:$F$59,M18,'Výpočet kapacit'!$E$5:$E$59,N$7)/1000 -> 0 | P18: =IFERROR(INDEX('Výpočet kapacit'!$F$5:$F$59,MATCH(1,('Výpočet kapacit'!$E$5:$E$59=Q$7)*(COUNTIF(P$8:P17,'Výpočet kapacit'!$F$5:$F$59)=0),0)),"") ->  | Q18: =SUMIFS('Výpočet kapacit'!$G$5:$G$59,'Výpočet kapacit'!$F$5:$F$59,P18,'Výpočet kapacit'!$E$5:$E$59,Q$7)/1000 -> 0 | S18: =IFERROR(INDEX('Výpočet kapacit'!$F$5:$F$59,MATCH(1,('Výpočet kapacit'!$E$5:$E$59=T$7)*(COUNTIF(S$8:S17,'Výpočet kapacit'!$F$5:$F$59)=0),0)),"") ->  | T18: =SUMIFS('Výpočet kapacit'!$G$5:$G$59,'Výpočet kapacit'!$F$5:$F$59,S18,'Výpočet kapacit'!$E$5:$E$59,T$7)/1000 -> 0 | V18: =IFERROR(INDEX('Výpočet kapacit'!$F$5:$F$59,MATCH(1,('Výpočet kapacit'!$E$5:$E$59=W$7)*(COUNTIF(V$8:V17,'Výpočet kapacit'!$F$5:$F$59)=0),0)),"") ->  | W18: =SUMIFS('Výpočet kapacit'!$G$5:$G$59,'Výpočet kapacit'!$F$5:$F$59,V18,'Výpočet kapacit'!$E$5:$E$59,W$7)/1000 -> 0
A19: =IFERROR(INDEX('Výpočet kapacit'!$F$5:$F$59,MATCH(1,('Výpočet kapacit'!$E$5:$E$59=B$7)*(COUNTIF(A$8:A18,'Výpočet kapacit'!$F$5:$F$59)=0),0)),"") ->  | B19: =SUMIFS('Výpočet kapacit'!$G$5:$G$59,'Výpočet kapacit'!$F$5:$F$59,A19,'Výpočet kapacit'!$E$5:$E$59,B$7)/1000 -> 0 | D19: =IFERROR(INDEX('Výpočet kapacit'!$F$5:$F$59,MATCH(1,('Výpočet kapacit'!$E$5:$E$59=E$7)*(COUNTIF(D$8:D18,'Výpočet kapacit'!$F$5:$F$59)=0),0)),"") ->  | E19: =SUMIFS('Výpočet kapacit'!$G$5:$G$59,'Výpočet kapacit'!$F$5:$F$59,D19,'Výpočet kapacit'!$E$5:$E$59,E$7)/1000 -> 0 | G19: =IFERROR(INDEX('Výpočet kapacit'!$F$5:$F$59,MATCH(1,('Výpočet kapacit'!$E$5:$E$59=H$7)*(COUNTIF(G$8:G18,'Výpočet kapacit'!$F$5:$F$59)=0),0)),"") ->  | H19: =SUMIFS('Výpočet kapacit'!$G$5:$G$59,'Výpočet kapacit'!$F$5:$F$59,G19,'Výpočet kapacit'!$E$5:$E$59,H$7)/1000 -> 0 | J19: =IFERROR(INDEX('Výpočet kapacit'!$F$5:$F$59,MATCH(1,('Výpočet kapacit'!$E$5:$E$59=K$7)*(COUNTIF(J$8:J18,'Výpočet kapacit'!$F$5:$F$59)=0),0)),"") ->  | K19: =SUMIFS('Výpočet kapacit'!$G$5:$G$59,'Výpočet kapacit'!$F$5:$F$59,J19,'Výpočet kapacit'!$E$5:$E$59,K$7)/1000 -> 0 | M19: =IFERROR(INDEX('Výpočet kapacit'!$F$5:$F$59,MATCH(1,('Výpočet kapacit'!$E$5:$E$59=N$7)*(COUNTIF(M$8:M18,'Výpočet kapacit'!$F$5:$F$59)=0),0)),"") ->  | N19: =SUMIFS('Výpočet kapacit'!$G$5:$G$59,'Výpočet kapacit'!$F$5:$F$59,M19,'Výpočet kapacit'!$E$5:$E$59,N$7)/1000 -> 0 | P19: =IFERROR(INDEX('Výpočet kapacit'!$F$5:$F$59,MATCH(1,('Výpočet kapacit'!$E$5:$E$59=Q$7)*(COUNTIF(P$8:P18,'Výpočet kapacit'!$F$5:$F$59)=0),0)),"") ->  | Q19: =SUMIFS('Výpočet kapacit'!$G$5:$G$59,'Výpočet kapacit'!$F$5:$F$59,P19,'Výpočet kapacit'!$E$5:$E$59,Q$7)/1000 -> 0 | S19: =IFERROR(INDEX('Výpočet kapacit'!$F$5:$F$59,MATCH(1,('Výpočet kapacit'!$E$5:$E$59=T$7)*(COUNTIF(S$8:S18,'Výpočet kapacit'!$F$5:$F$59)=0),0)),"") ->  | T19: =SUMIFS('Výpočet kapacit'!$G$5:$G$59,'Výpočet kapacit'!$F$5:$F$59,S19,'Výpočet kapacit'!$E$5:$E$59,T$7)/1000 -> 0 | V19: =IFERROR(INDEX('Výpočet kapacit'!$F$5:$F$59,MATCH(1,('Výpočet kapacit'!$E$5:$E$59=W$7)*(COUNTIF(V$8:V18,'Výpočet kapacit'!$F$5:$F$59)=0),0)),"") ->  | W19: =SUMIFS('Výpočet kapacit'!$G$5:$G$59,'Výpočet kapacit'!$F$5:$F$59,V19,'Výpočet kapacit'!$E$5:$E$59,W$7)/1000 -> 0
A20: =IFERROR(INDEX('Výpočet kapacit'!$F$5:$F$59,MATCH(1,('Výpočet kapacit'!$E$5:$E$59=B$7)*(COUNTIF(A$8:A19,'Výpočet kapacit'!$F$5:$F$59)=0),0)),"") ->  | B20: =SUMIFS('Výpočet kapacit'!$G$5:$G$59,'Výpočet kapacit'!$F$5:$F$59,A20,'Výpočet kapacit'!$E$5:$E$59,B$7)/1000 -> 0 | D20: =IFERROR(INDEX('Výpočet kapacit'!$F$5:$F$59,MATCH(1,('Výpočet kapacit'!$E$5:$E$59=E$7)*(COUNTIF(D$8:D19,'Výpočet kapacit'!$F$5:$F$59)=0),0)),"") ->  | E20: =SUMIFS('Výpočet kapacit'!$G$5:$G$59,'Výpočet kapacit'!$F$5:$F$59,D20,'Výpočet kapacit'!$E$5:$E$59,E$7)/1000 -> 0 | G20: =IFERROR(INDEX('Výpočet kapacit'!$F$5:$F$59,MATCH(1,('Výpočet kapacit'!$E$5:$E$59=H$7)*(COUNTIF(G$8:G19,'Výpočet kapacit'!$F$5:$F$59)=0),0)),"") ->  | H20: =SUMIFS('Výpočet kapacit'!$G$5:$G$59,'Výpočet kapacit'!$F$5:$F$59,G20,'Výpočet kapacit'!$E$5:$E$59,H$7)/1000 -> 0 | J20: =IFERROR(INDEX('Výpočet kapacit'!$F$5:$F$59,MATCH(1,('Výpočet kapacit'!$E$5:$E$59=K$7)*(COUNTIF(J$8:J19,'Výpočet kapacit'!$F$5:$F$59)=0),0)),"") ->  | K20: =SUMIFS('Výpočet kapacit'!$G$5:$G$59,'Výpočet kapacit'!$F$5:$F$59,J20,'Výpočet kapacit'!$E$5:$E$59,K$7)/1000 -> 0 | M20: =IFERROR(INDEX('Výpočet kapacit'!$F$5:$F$59,MATCH(1,('Výpočet kapacit'!$E$5:$E$59=N$7)*(COUNTIF(M$8:M19,'Výpočet kapacit'!$F$5:$F$59)=0),0)),"") ->  | N20: =SUMIFS('Výpočet kapacit'!$G$5:$G$59,'Výpočet kapacit'!$F$5:$F$59,M20,'Výpočet kapacit'!$E$5:$E$59,N$7)/1000 -> 0 | P20: =IFERROR(INDEX('Výpočet kapacit'!$F$5:$F$59,MATCH(1,('Výpočet kapacit'!$E$5:$E$59=Q$7)*(COUNTIF(P$8:P19,'Výpočet kapacit'!$F$5:$F$59)=0),0)),"") ->  | Q20: =SUMIFS('Výpočet kapacit'!$G$5:$G$59,'Výpočet kapacit'!$F$5:$F$59,P20,'Výpočet kapacit'!$E$5:$E$59,Q$7)/1000 -> 0 | S20: =IFERROR(INDEX('Výpočet kapacit'!$F$5:$F$59,MATCH(1,('Výpočet kapacit'!$E$5:$E$59=T$7)*(COUNTIF(S$8:S19,'Výpočet kapacit'!$F$5:$F$59)=0),0)),"") ->  | T20: =SUMIFS('Výpočet kapacit'!$G$5:$G$59,'Výpočet kapacit'!$F$5:$F$59,S20,'Výpočet kapacit'!$E$5:$E$59,T$7)/1000 -> 0 | V20: =IFERROR(INDEX('Výpočet kapacit'!$F$5:$F$59,MATCH(1,('Výpočet kapacit'!$E$5:$E$59=W$7)*(COUNTIF(V$8:V19,'Výpočet kapacit'!$F$5:$F$59)=0),0)),"") ->  | W20: =SUMIFS('Výpočet kapacit'!$G$5:$G$59,'Výpočet kapacit'!$F$5:$F$59,V20,'Výpočet kapacit'!$E$5:$E$59,W$7)/1000 -> 0
A21: =IFERROR(INDEX('Výpočet kapacit'!$F$5:$F$59,MATCH(1,('Výpočet kapacit'!$E$5:$E$59=B$7)*(COUNTIF(A$8:A20,'Výpočet kapacit'!$F$5:$F$59)=0),0)),"") ->  | B21: =SUMIFS('Výpočet kapacit'!$G$5:$G$59,'Výpočet kapacit'!$F$5:$F$59,A21,'Výpočet kapacit'!$E$5:$E$59,B$7)/1000 -> 0 | D21: =IFERROR(INDEX('Výpočet kapacit'!$F$5:$F$59,MATCH(1,('Výpočet kapacit'!$E$5:$E$59=E$7)*(COUNTIF(D$8:D20,'Výpočet kapacit'!$F$5:$F$59)=0),0)),"") ->  | E21: =SUMIFS('Výpočet kapacit'!$G$5:$G$59,'Výpočet kapacit'!$F$5:$F$59,D21,'Výpočet kapacit'!$E$5:$E$59,E$7)/1000 -> 0 | G21: =IFERROR(INDEX('Výpočet kapacit'!$F$5:$F$59,MATCH(1,('Výpočet kapacit'!$E$5:$E$59=H$7)*(COUNTIF(G$8:G20,'Výpočet kapacit'!$F$5:$F$59)=0),0)),"") ->  | H21: =SUMIFS('Výpočet kapacit'!$G$5:$G$59,'Výpočet kapacit'!$F$5:$F$59,G21,'Výpočet kapacit'!$E$5:$E$59,H$7)/1000 -> 0 | J21: =IFERROR(INDEX('Výpočet kapacit'!$F$5:$F$59,MATCH(1,('Výpočet kapacit'!$E$5:$E$59=K$7)*(COUNTIF(J$8:J20,'Výpočet kapacit'!$F$5:$F$59)=0),0)),"") ->  | K21: =SUMIFS('Výpočet kapacit'!$G$5:$G$59,'Výpočet kapacit'!$F$5:$F$59,J21,'Výpočet kapacit'!$E$5:$E$59,K$7)/1000 -> 0 | M21: =IFERROR(INDEX('Výpočet kapacit'!$F$5:$F$59,MATCH(1,('Výpočet kapacit'!$E$5:$E$59=N$7)*(COUNTIF(M$8:M20,'Výpočet kapacit'!$F$5:$F$59)=0),0)),"") ->  | N21: =SUMIFS('Výpočet kapacit'!$G$5:$G$59,'Výpočet kapacit'!$F$5:$F$59,M21,'Výpočet kapacit'!$E$5:$E$59,N$7)/1000 -> 0 | P21: =IFERROR(INDEX('Výpočet kapacit'!$F$5:$F$59,MATCH(1,('Výpočet kapacit'!$E$5:$E$59=Q$7)*(COUNTIF(P$8:P20,'Výpočet kapacit'!$F$5:$F$59)=0),0)),"") ->  | Q21: =SUMIFS('Výpočet kapacit'!$G$5:$G$59,'Výpočet kapacit'!$F$5:$F$59,P21,'Výpočet kapacit'!$E$5:$E$59,Q$7)/1000 -> 0 | S21: =IFERROR(INDEX('Výpočet kapacit'!$F$5:$F$59,MATCH(1,('Výpočet kapacit'!$E$5:$E$59=T$7)*(COUNTIF(S$8:S20,'Výpočet kapacit'!$F$5:$F$59)=0),0)),"") ->  | T21: =SUMIFS('Výpočet kapacit'!$G$5:$G$59,'Výpočet kapacit'!$F$5:$F$59,S21,'Výpočet kapacit'!$E$5:$E$59,T$7)/1000 -> 0 | V21: =IFERROR(INDEX('Výpočet kapacit'!$F$5:$F$59,MATCH(1,('Výpočet kapacit'!$E$5:$E$59=W$7)*(COUNTIF(V$8:V20,'Výpočet kapacit'!$F$5:$F$59)=0),0)),"") ->  | W21: =SUMIFS('Výpočet kapacit'!$G$5:$G$59,'Výpočet kapacit'!$F$5:$F$59,V21,'Výpočet kapacit'!$E$5:$E$59,W$7)/1000 -> 0
A22: =IFERROR(INDEX('Výpočet kapacit'!$F$5:$F$59,MATCH(1,('Výpočet kapacit'!$E$5:$E$59=B$7)*(COUNTIF(A$8:A21,'Výpočet kapacit'!$F$5:$F$59)=0),0)),"") ->  | B22: =SUMIFS('Výpočet kapacit'!$G$5:$G$59,'Výpočet kapacit'!$F$5:$F$59,A22,'Výpočet kapacit'!$E$5:$E$59,B$7)/1000 -> 0 | D22: =IFERROR(INDEX('Výpočet kapacit'!$F$5:$F$59,MATCH(1,('Výpočet kapacit'!$E$5:$E$59=E$7)*(COUNTIF(D$8:D21,'Výpočet kapacit'!$F$5:$F$59)=0),0)),"") ->  | E22: =SUMIFS('Výpočet kapacit'!$G$5:$G$59,'Výpočet kapacit'!$F$5:$F$59,D22,'Výpočet kapacit'!$E$5:$E$59,E$7)/1000 -> 0 | G22: =IFERROR(INDEX('Výpočet kapacit'!$F$5:$F$59,MATCH(1,('Výpočet kapacit'!$E$5:$E$59=H$7)*(COUNTIF(G$8:G21,'Výpočet kapacit'!$F$5:$F$59)=0),0)),"") ->  | H22: =SUMIFS('Výpočet kapacit'!$G$5:$G$59,'Výpočet kapacit'!$F$5:$F$59,G22,'Výpočet kapacit'!$E$5:$E$59,H$7)/1000 -> 0 | J22: =IFERROR(INDEX('Výpočet kapacit'!$F$5:$F$59,MATCH(1,('Výpočet kapacit'!$E$5:$E$59=K$7)*(COUNTIF(J$8:J21,'Výpočet kapacit'!$F$5:$F$59)=0),0)),"") ->  | K22: =SUMIFS('Výpočet kapacit'!$G$5:$G$59,'Výpočet kapacit'!$F$5:$F$59,J22,'Výpočet kapacit'!$E$5:$E$59,K$7)/1000 -> 0 | M22: =IFERROR(INDEX('Výpočet kapacit'!$F$5:$F$59,MATCH(1,('Výpočet kapacit'!$E$5:$E$59=N$7)*(COUNTIF(M$8:M21,'Výpočet kapacit'!$F$5:$F$59)=0),0)),"") ->  | N22: =SUMIFS('Výpočet kapacit'!$G$5:$G$59,'Výpočet kapacit'!$F$5:$F$59,M22,'Výpočet kapacit'!$E$5:$E$59,N$7)/1000 -> 0 | P22: =IFERROR(INDEX('Výpočet kapacit'!$F$5:$F$59,MATCH(1,('Výpočet kapacit'!$E$5:$E$59=Q$7)*(COUNTIF(P$8:P21,'Výpočet kapacit'!$F$5:$F$59)=0),0)),"") ->  | Q22: =SUMIFS('Výpočet kapacit'!$G$5:$G$59,'Výpočet kapacit'!$F$5:$F$59,P22,'Výpočet kapacit'!$E$5:$E$59,Q$7)/1000 -> 0 | S22: =IFERROR(INDEX('Výpočet kapacit'!$F$5:$F$59,MATCH(1,('Výpočet kapacit'!$E$5:$E$59=T$7)*(COUNTIF(S$8:S21,'Výpočet kapacit'!$F$5:$F$59)=0),0)),"") ->  | T22: =SUMIFS('Výpočet kapacit'!$G$5:$G$59,'Výpočet kapacit'!$F$5:$F$59,S22,'Výpočet kapacit'!$E$5:$E$59,T$7)/1000 -> 0 | V22: =IFERROR(INDEX('Výpočet kapacit'!$F$5:$F$59,MATCH(1,('Výpočet kapacit'!$E$5:$E$59=W$7)*(COUNTIF(V$8:V21,'Výpočet kapacit'!$F$5:$F$59)=0),0)),"") ->  | W22: =SUMIFS('Výpočet kapacit'!$G$5:$G$59,'Výpočet kapacit'!$F$5:$F$59,V22,'Výpočet kapacit'!$E$5:$E$59,W$7)/1000 -> 0
A23: =IFERROR(INDEX('Výpočet kapacit'!$F$5:$F$59,MATCH(1,('Výpočet kapacit'!$E$5:$E$59=B$7)*(COUNTIF(A$8:A22,'Výpočet kapacit'!$F$5:$F$59)=0),0)),"") ->  | B23: =SUMIFS('Výpočet kapacit'!$G$5:$G$59,'Výpočet kapacit'!$F$5:$F$59,A23,'Výpočet kapacit'!$E$5:$E$59,B$7)/1000 -> 0 | D23: =IFERROR(INDEX('Výpočet kapacit'!$F$5:$F$59,MATCH(1,('Výpočet kapacit'!$E$5:$E$59=E$7)*(COUNTIF(D$8:D22,'Výpočet kapacit'!$F$5:$F$59)=0),0)),"") ->  | E23: =SUMIFS('Výpočet kapacit'!$G$5:$G$59,'Výpočet kapacit'!$F$5:$F$59,D23,'Výpočet kapacit'!$E$5:$E$59,E$7)/1000 -> 0 | G23: =IFERROR(INDEX('Výpočet kapacit'!$F$5:$F$59,MATCH(1,('Výpočet kapacit'!$E$5:$E$59=H$7)*(COUNTIF(G$8:G22,'Výpočet kapacit'!$F$5:$F$59)=0),0)),"") ->  | H23: =SUMIFS('Výpočet kapacit'!$G$5:$G$59,'Výpočet kapacit'!$F$5:$F$59,G23,'Výpočet kapacit'!$E$5:$E$59,H$7)/1000 -> 0 | J23: =IFERROR(INDEX('Výpočet kapacit'!$F$5:$F$59,MATCH(1,('Výpočet kapacit'!$E$5:$E$59=K$7)*(COUNTIF(J$8:J22,'Výpočet kapacit'!$F$5:$F$59)=0),0)),"") ->  | K23: =SUMIFS('Výpočet kapacit'!$G$5:$G$59,'Výpočet kapacit'!$F$5:$F$59,J23,'Výpočet kapacit'!$E$5:$E$59,K$7)/1000 -> 0 | M23: =IFERROR(INDEX('Výpočet kapacit'!$F$5:$F$59,MATCH(1,('Výpočet kapacit'!$E$5:$E$59=N$7)*(COUNTIF(M$8:M22,'Výpočet kapacit'!$F$5:$F$59)=0),0)),"") ->  | N23: =SUMIFS('Výpočet kapacit'!$G$5:$G$59,'Výpočet kapacit'!$F$5:$F$59,M23,'Výpočet kapacit'!$E$5:$E$59,N$7)/1000 -> 0 | P23: =IFERROR(INDEX('Výpočet kapacit'!$F$5:$F$59,MATCH(1,('Výpočet kapacit'!$E$5:$E$59=Q$7)*(COUNTIF(P$8:P22,'Výpočet kapacit'!$F$5:$F$59)=0),0)),"") ->  | Q23: =SUMIFS('Výpočet kapacit'!$G$5:$G$59,'Výpočet kapacit'!$F$5:$F$59,P23,'Výpočet kapacit'!$E$5:$E$59,Q$7)/1000 -> 0 | S23: =IFERROR(INDEX('Výpočet kapacit'!$F$5:$F$59,MATCH(1,('Výpočet kapacit'!$E$5:$E$59=T$7)*(COUNTIF(S$8:S22,'Výpočet kapacit'!$F$5:$F$59)=0),0)),"") ->  | T23: =SUMIFS('Výpočet kapacit'!$G$5:$G$59,'Výpočet kapacit'!$F$5:$F$59,S23,'Výpočet kapacit'!$E$5:$E$59,T$7)/1000 -> 0 | V23: =IFERROR(INDEX('Výpočet kapacit'!$F$5:$F$59,MATCH(1,('Výpočet kapacit'!$E$5:$E$59=W$7)*(COUNTIF(V$8:V22,'Výpočet kapacit'!$F$5:$F$59)=0),0)),"") ->  | W23: =SUMIFS('Výpočet kapacit'!$G$5:$G$59,'Výpočet kapacit'!$F$5:$F$59,V23,'Výpočet kapacit'!$E$5:$E$59,W$7)/1000 -> 0
A24: =IFERROR(INDEX('Výpočet kapacit'!$F$5:$F$59,MATCH(1,('Výpočet kapacit'!$E$5:$E$59=B$7)*(COUNTIF(A$8:A23,'Výpočet kapacit'!$F$5:$F$59)=0),0)),"") ->  | B24: =SUMIFS('Výpočet kapacit'!$G$5:$G$59,'Výpočet kapacit'!$F$5:$F$59,A24,'Výpočet kapacit'!$E$5:$E$59,B$7)/1000 -> 0 | D24: =IFERROR(INDEX('Výpočet kapacit'!$F$5:$F$59,MATCH(1,('Výpočet kapacit'!$E$5:$E$59=E$7)*(COUNTIF(D$8:D23,'Výpočet kapacit'!$F$5:$F$59)=0),0)),"") ->  | E24: =SUMIFS('Výpočet kapacit'!$G$5:$G$59,'Výpočet kapacit'!$F$5:$F$59,D24,'Výpočet kapacit'!$E$5:$E$59,E$7)/1000 -> 0 | G24: =IFERROR(INDEX('Výpočet kapacit'!$F$5:$F$59,MATCH(1,('Výpočet kapacit'!$E$5:$E$59=H$7)*(COUNTIF(G$8:G23,'Výpočet kapacit'!$F$5:$F$59)=0),0)),"") ->  | H24: =SUMIFS('Výpočet kapacit'!$G$5:$G$59,'Výpočet kapacit'!$F$5:$F$59,G24,'Výpočet kapacit'!$E$5:$E$59,H$7)/1000 -> 0 | J24: =IFERROR(INDEX('Výpočet kapacit'!$F$5:$F$59,MATCH(1,('Výpočet kapacit'!$E$5:$E$59=K$7)*(COUNTIF(J$8:J23,'Výpočet kapacit'!$F$5:$F$59)=0),0)),"") ->  | K24: =SUMIFS('Výpočet kapacit'!$G$5:$G$59,'Výpočet kapacit'!$F$5:$F$59,J24,'Výpočet kapacit'!$E$5:$E$59,K$7)/1000 -> 0 | M24: =IFERROR(INDEX('Výpočet kapacit'!$F$5:$F$59,MATCH(1,('Výpočet kapacit'!$E$5:$E$59=N$7)*(COUNTIF(M$8:M23,'Výpočet kapacit'!$F$5:$F$59)=0),0)),"") ->  | N24: =SUMIFS('Výpočet kapacit'!$G$5:$G$59,'Výpočet kapacit'!$F$5:$F$59,M24,'Výpočet kapacit'!$E$5:$E$59,N$7)/1000 -> 0 | P24: =IFERROR(INDEX('Výpočet kapacit'!$F$5:$F$59,MATCH(1,('Výpočet kapacit'!$E$5:$E$59=Q$7)*(COUNTIF(P$8:P23,'Výpočet kapacit'!$F$5:$F$59)=0),0)),"") ->  | Q24: =SUMIFS('Výpočet kapacit'!$G$5:$G$59,'Výpočet kapacit'!$F$5:$F$59,P24,'Výpočet kapacit'!$E$5:$E$59,Q$7)/1000 -> 0 | S24: =IFERROR(INDEX('Výpočet kapacit'!$F$5:$F$59,MATCH(1,('Výpočet kapacit'!$E$5:$E$59=T$7)*(COUNTIF(S$8:S23,'Výpočet kapacit'!$F$5:$F$59)=0),0)),"") ->  | T24: =SUMIFS('Výpočet kapacit'!$G$5:$G$59,'Výpočet kapacit'!$F$5:$F$59,S24,'Výpočet kapacit'!$E$5:$E$59,T$7)/1000 -> 0 | V24: =IFERROR(INDEX('Výpočet kapacit'!$F$5:$F$59,MATCH(1,('Výpočet kapacit'!$E$5:$E$59=W$7)*(COUNTIF(V$8:V23,'Výpočet kapacit'!$F$5:$F$59)=0),0)),"") ->  | W24: =SUMIFS('Výpočet kapacit'!$G$5:$G$59,'Výpočet kapacit'!$F$5:$F$59,V24,'Výpočet kapacit'!$E$5:$E$59,W$7)/1000 -> 0

Sheet Seznam dílů
A1: Číslo dílu | B1: Název dílu | C1: Normový čas (s) | D1: Jakost materiálu | E1: Průměr/Rozměr | F1: Délka kusu
A2: PPB-001.04.02 | B2: vložka | C2: 62 | D2: 4301 | E2: 16 | F2: 25
A3: PPB-001.06.04 | B3: čep 1 D8 | C3: 22 | D3: 4301 | E3: 8 | F3: 15
A4: PPB-001.08.04 | B4: čep 2 D8 | C4: 23 | D4: 4301 | E4: 8 | F4: 21
A5: PPB-001.10.02 a | B5: osa ramene infuzáku | C5: 42 | D5: 4301 | E5: 16 | F5: 94
A6: PPB-001.10.03 b | B6: dorazový čep 1 | C6: 63 | D6: 4301 | E6: 10 | F6: 52
A7: PPB-001.10.04 b | B7: dorazový čep 2 | C7: 25 | D7: 4301 | E7: 10 | F7: 22
A8: PPB-001.10.05 | B8: trubka | C8: 170 | D8: 11373 | E8: 45x5 | F8: 100
A9: PPB-001.10.06 | B9: knoflík | C9: 296 | D9: 11373 | E9: 55 | F9: 27
A10: PPB-001.16.01 a | B10: šestihran 2 | C10: 30 | D10: 4301 | E10: SW11 | F10: 68
A11: PPB-002.28 | B11: seřizovací šroub dlouhý | C11: 57 | D11: EN2007 | E11: 22 | F11: 14
A12: PPB-002.30 a | B12: čep motoru | C12: 31 | D12: 4301 | E12: 8 | F12: 43
A13: PPB-003.09.02 | B13: čep misky | C13: 143 | D13: 4301 | E13: 15 | F13: 83
A14: PPB-005.02.01.04 | B14: čep výztuhy zadního madla | C14: 18 | D14: 4301 | E14: 10 | F14: 28
A15: PPB-005.06 a | B15: odjišťovací čep | C15: 107 | D15: PA | E15: 30 | F15: 39
A16: PPB-005.18 | B16: čep hladký s drážkami | C16: 37 | D16: 4305 | E16: 10 | F16: 64
A17: PPB-005.19 a | B17: čep hladký | C17: 56 | D17: 4305 | E17: 10 | F17: 88
A18: PPB-005.22 | B18: doraz CPR | C18: 58 | D18: 4301 | E18: 25 | F18: 12
A19: PPB-006.01.01 a | B19: nosná trubka 1 | C19: 125 | D19: 11373 | E19: 51x3,2 | F19: 152
A20: PPB-006.01.02 a | B20: nosná trubka 2 | C20: 125 | D20: 11373 | E20: 51x3,2 | F20: 115
A21: PPB-006.01.04 b | B21: vložka trubky | C21: 126 | D21: 11373 | E21: 50 | F21: 30
A22: PPB-006.02.02 a | B22: čep táhla | C22: 42 | D22: 4301 | E22: 15 | F22: 43
A23: PPB-006.02.04 | B23: vodící čep | C23: 22 | D23: 4301 | E23: 10 | F23: 24
A24: PPB-006.03.04 a | B24: rozpěrná trubka 1 | C24: 35 | D24: 11373 | E24: 22x3 | F24: 164
A25: PPB-006.03.05 a | B25: rozpěrná trubka 2 | C25: 34 | D25: 11373 | E25: 22x3 | F25: 124
A26: PPB-006.05.06 a | B26: čep s drážkou | C26: 38 | D26: 4301 | E26: 15 | F26: 14
A27: PPB-006.08.02 a | B27: čep ovládače | C27: 53 | D27: 4301 | E27: 12 | F27: 34
A28: PPB-006.09.01 b | B28: váleček táhla | C28: 75 | D28: 4301 | E28: 20 | F28: 25
A29: PPB-006.10.01 a | B29: čepka ovladače | C29: 107 | D29: 4301 | E29: 30 | F29: 20
A30: PPB-006.14.01 a | B30: čep zajišťovače | C30: 42 | D30: 4301 | E30: 12 | F30: 130
A31: PPB-006.14.02 b | B31: zajišťovací čep | C31: 75 | D31: 4301 | E31: 18 | F31: 18
A32: PPB-006.19 | B32: dorazový váleček | C32: 40 | D32: 4305 | E32: 12 | F32: 20
A33: PPB-006.25 a | B33: čep hladký s drážkou | C33: 35 | D33: 4305 | E33: 15 | F33: 144
A34: PPB-006.26.01 a | B34: čep hladký | C34: 29 | D34: 4301 | E34: 15 | F34: 99
A35: PPB-006.28 a | B35: čep hladký | C35: 33 | D35: 4305 | E35: 15 | F35: 192
A36: PPB-006.29 | B36: čep hladký s drážkami | C36: 27 | D36: 4305 | E36: 10 | F36: 40
A37: PPB-006.30 | B37: čep hladký s drážkami | C37: 37 | D37: 4305 | E37: 10 | F37: 36
A38: PPB-006.31.01 | B38: čep hladký | C38: 18 | D38: 4301 | E38: 10 | F38: 26
A39: PPB-007.07.07 b | B39: přitlačná tyč | C39: 89 | D39: 4305 | E39: 16 | F39: 64
A40: PPB-007.07.14 a | B40: čep 6x35 | C40: 31 | D40: 4305 | E40: 6 | F40: 35
A41: PPB-007.07.15 a | B41: čep 4x41,6 | C41: 32 | D41: 4305 | E41: 4 | F41: 42
A42: PPB-007.07.16 | B42: čep 4x54 | C42: 21 | D42: 4305 | E42: 4 | F42: 54
A43: PPB-007.07.17 | B43: čep 4x38 | C43: 17 | D43: 4305 | E43: 4 | F43: 38
A44: PPB-007.08.02 | B44: pouzdro vidící | C44: 39 | D44: 11373 | E44: 22x3 | F44: 25
A45: PPB-007.08.06 | B45: čep vedení | C45: 49 | D45: 4301 | E45: 8 | F45: 18
A46: PPB-007.08.09 | B46: čep deaktivace | C46: 30 | D46: 4301 | E46: 8 | F46: 7
A47: PPB-007.11 | B47: čep aretace nohy | C47: 24 | D47: 4301 | E47: 10 | F47: 26
A48: PPB-007.14.01 | B48: čep páčky | C48: 61 | D48: 4301 | E48: 15 | F48: 49
A49: PPB-007.15.01 a | B49: pouzdro páčky | C49: 31 | D49: 11373 | E49: 14 | F49: 10
A50: PPB-007.23.01 | B50: rozpěrka napínání | C50: 40 | D50: EN2007 | E50: 10 | F50: 25
A51: PPB-007.25 b | B51: vložka pružiny | C51: 62 | D51: PA6 | E51: 30 | F51: 57
A52: PPB-007.26.01 | B52: pouzdro vedení | C52: 54 | D52: 11373 | E52: 20x2 | F52: 70
A53: PPB-007.33 a | B53: šroub zajištění | C53: 34 | D53: 4301 | E53: 6 | F53: 30
A54: PPB-010.07 b | B54: čep palce | C54: 108 | D54: 4301 | E54: 22 | F54: 15
A55: PPB-010.08.02 | B55: čep táhla | C55: 20 | D55: 4301 | E55: 8 | F55: 13
A56: PPB-015 a | B56: nosný čep | C56: 54 | D56: 4305 | E56: 20 | F56: 219
A57: PPB-016.01 a | B57: trubička | C57: 87 | D57: 11523 | E57: 24 | F57: 23
A58: PPB-017.02 a | B58: čep táhla | C58: 49 | D58: 4301 | E58: 15 | F58: 54
A59: PPB-018 a | B59: čep nohy | C59: 42 | D59: 4305 | E59: 20 | F59: 53
A60: PPB-019 | B60: čep hlavní | C60: 30 | D60: 4305 | E60: 15 | F60: 61
A61: PPB-020 | B61: čep hladký s drážkami | C61: 36 | D61: 4305 | E61: 10 | F61: 49
A62: PPB-021 | B62: čep hladký s drážkami | C62: 38 | D62: 4305 | E62: 10 | F62: 61
A63: PPB-029 | B63: čep hladký s drážkami | C63: 46 | D63: 4305 | E63: 12 | F63: 49
A64: PPB-012.02.03.07.02 | B64: čep zajišťovače | C64: 20 | D64: 4301 | E64: 8 | F64: 24
A65: PPB-012.02.02.03 | B65: čep ramena rajcáku | C65: 74 | D65: 4301 | E65: 22 | F65: 47
A66: PPB-012.02.03.06.02 | B66: trn zajišťovače | C66: 31 | D66: 4301 | E66: 8 | F66: 111
A67: PPB-012.02.03.06.01 | B67: kryt trnu zajišťovače | C67: 75 | D67: PA6 | E67: 20 | F67: 25
A68: PPB-012.02.02.02 | B68: náboj ramene rajcaku | C68: 49 | D68: 11373 | E68: 30x4 | F68: 42
A69: PPB-60.05 b | B69: trn čela | C69: 74 | D69: 4301 | E69: 16 | F69: 110
A70: PPB-064.01.02 | B70: váleček | C70: 39 | D70: 4301 | E70: 14 | F70: 19
A71: PPB-067.02.01.03 | B71: váleček držáku | C71: 36 | D71: 4301 | E71: 14 | F71: 12
A72: PPB-067.02.01.02 a | B72: válec držáku hrazdy L | C72: 200 | D72: 4301 | E72: 35 | F72: 70
A73: PPB-067.03.01.02 a | B73: válec držáku hrazdy P | C73: 200 | D73: 4301 | E73: 35 | F73: 70
A74: PPB-067.01.01.02 a | B74: čep hrazdy levý | C74: 185 | D74: 4301 | E74: 32 | F74: 115
A75: PPB-067.01.01.03 a | B75: čep hrazdy pravý | C75: 185 | D75: 4301 | E75: 32 | F75: 115
A76: PPB-069.01.02 | B76: čep madla pd | C76: 90 | D76: 4301 | E76: 22 | F76: 45
A77: DIA-020.08 a | B77: čep krátký | C77: 39 | D77: 4301 | E77: 10 | F77: 49
A78: DIA-ZP-003.01.03 b | B78: vložka držáku | C78: 112 | D78: 11373 | E78: 35 | F78: 25
A79: DIA-ZP-003.01.04 a | B79: trubka | C79: 70 | D79: 11373 | E79: 45x5 | F79: 110
A80: PPA-06.19.05 | B80: čep | C80: 29 | D80: 4301 | E80: 15 | F80: 20
A81: PPA-24 | B81: zemnící vložka | C81: 25 | D81: 4301 | E81: 10 | F81: 5
A82: PPA-06.14 c | B82: čep 4 | C82: 80 | D82: 4301 | E82: 20 | F82: 26
A83: PPA-102.07 | B83: seřizovací šroub | C83: 57 | D83: EN2007 | E83: 22 | F83: 11
A84: PPA-077.15 d | B84: kluzná podložka | C84: 75 | D84: CuAl10Fe3Mn1,5 | E84: 32 | F84: 10
A85: PPA-077.01.03 b | B85: čep d26 | C85: 130 | D85: 4301 | E85: 26 | F85: 115
A86: SLA-001.36 a | B86: krytka kola | C86: 35 | D86: Ertalon Černý | E86: 32 | F86: 7
A87: SLA-033 a | B87: čep | C87: 38 | D87: 4301 | E87: 10 | F87: 33
A88: SLA-018 a | B88: čep 10x30 | C88: 16 | D88: 4301 | E88: 10 | F88: 30
A89: SLA-013 | B89: čep | C89: 17 | D89: 4301 | E89: 10 | F89: 35
A90: SLA-001.30.02 b | B90: šestihran pedálu P | C90: 21 | D90: 4301 | E90: SW11 | F90: 69
A91: SLA-001.31.02 b | B91: šestihran pedálu L | C91: 21 | D91: 4301 | E91: SW11 | F91: 69
A92: SLA-007.04.03 c | B92: náboj područky | C92: 159 | D92: 11373 | E92: 45 | F92: 52
A93: SLA-001.09 g | B93: hřídel nápravy | C93: 78 | D93: 11373 | E93: 12 | F93: 700
A94: SLA-001.01.17 | B94: úchyt | C94: 86 | D94: 11373 | E94: 35 | F94: 6
A95: SLA-026 | B95: šroub područky | C95: 35 | D95: 11373 | E95: SW12 | F95: 20
A96: SLA-020.01.02 | B96: čep dorazu | C96: 40 | D96: 11373 | E96: 18 | F96: 14
A97: SLA-001.01.09 e | B97: pouzdro | C97: 40 | D97: 11373 | E97: 45x8 | F97: 72
A98: SLA-003.02.05.07 | B98: aretace lanka | C98: 40 | D98: 11373 | E98: 5 | F98: 10
A99: SLA-003.16.02.03 | B99: nosný čep páčky | C99: 40 | D99: 4301 | E99: 8 | F99: 13
A100: SLA-003.19.05.01 | B100: rozpěrka 7,4x25 | C100: 70 | D100: EN2007 | E100: 10 | F100: 25
A101: SLA-003.19.05.03 | B101: matice rýhovaná M6x7 | C101: 25 | D101: EN2007 | E101: 10 | F101: 7

Sheet Průměry
A1: 4301 | B1: Seznam průměrů
A2: 4305 | B2: 4 | F2: Mezivýpočty 2 sloupec | G2: Mezivýpočty 3 sloupec | H2: Mezivýpočty 4 sloupec | I2: Mezivýpočty 5 sloupec | J2: Mezivýpočty 6 sloupec | K2: Mezivýpočty 7 sloupec | L2: Mezivýpočty 8 sloupec
A3: 11373 | B3: 5 | F3: =IF('Seznam materiálu'!B4=Průměry!A2,0,IFERROR(VLOOKUP(Průměry!A2,'Výpočet kapacit'!E5:E59,1,FALSE),0)) -> 4305 | G3: =IF('Seznam materiálu'!B4=Průměry!A3,0,IF('Seznam materiálu'!E4=Průměry!A3,0,IF('Seznam materiálu'!B4=Průměry!A3,0,IF('Seznam materiálu'!E4=0,0,IFERROR(VLOOKUP(Průměry!A3,'Výpočet kapacit'!E5:E59,1,FALSE),0))))) -> 11373 | H3: =IF(A4='Seznam materiálu'!B4,0,IF('Seznam materiálu'!H4=Průměry!A4,0,IF(F5='Seznam materiálu'!E4,0,IF('Seznam materiálu'!H4=0,0,IFERROR(VLOOKUP(Průměry!A4,'Výpočet kapacit'!E5:E59,1,FALSE),0))))) -> 0 | I3: =IF(F6='Seznam materiálu'!E4,0,IF(G5='Seznam materiálu'!H4,0,IF('Seznam materiálu'!K4=Průměry!A5,0,IF('Seznam materiálu'!K4=0,0,IFERROR(VLOOKUP(Průměry!A5,'Výpočet kapacit'!E5:E59,1,FALSE),0))))) -> 0 | J3: =IF(A6='Seznam materiálu'!B4,0,IF(F7='Seznam materiálu'!E4,0,IF(I4='Seznam materiálu'!N4,0,IF(H5='Seznam materiálu'!K4,0,IF(G6='Seznam materiálu'!H4,0,IF('Seznam materiálu'!N4=Průměry!A6,0,IFERROR(VLOOKUP(Průměry!A6,'Výpočet kapacit'!E5:E59,1,FALSE),0))))))) -> 0 | K3: =IF(A7='Seznam materiálu'!B4,0,IF(J4='Seznam materiálu'!Q4,0,IF(I5='Seznam materiálu'!N4=0,0,IF(H6='Seznam materiálu'!K4,0,IF(G7='Seznam materiálu'!H4,0,IF(F8='Seznam materiálu'!E4,0,IF('Seznam materiálu'!Q4=0,0,IFERROR(VLOOKUP(Průměry!A$7,'Výpočet kapacit'!E$5:E$59,1,FALSE),0)))))))) -> 0 | L3: =IF(A8='Seznam materiálu'!B4,0,IF(K4='Seznam materiálu'!T4,0,IF(J5='Seznam materiálu'!Q4,0,IF(I6='Seznam materiálu'!N4,0,IF(H7='Seznam materiálu'!K4,0,IF(G8='Seznam materiálu'!H4,0,IF(F9='Seznam materiálu'!E4,0,IF('Seznam materiálu'!T4=0,0,IFERROR(VLOOKUP(Průměry!A8,'Výpočet kapacit'!E5:E59,1,FALSE),0))))))))) -> 0
A4: 11523 | B4: 6 | F4: =IF('Seznam materiálu'!B4=Průměry!A3,0,IFERROR(VLOOKUP(A3,'Výpočet kapacit'!E5:E59,1,FALSE),0)) -> 11373 | G4: =IF('Seznam materiálu'!B4=Průměry!A4,0,IF('Seznam materiálu'!E4=Průměry!F5,0,IFERROR(VLOOKUP(A4,'Výpočet kapacit'!E5:E59,1,FALSE),0))) -> 0 | H4: =IF(A5='Seznam materiálu'!B4,0,IF(F6='Seznam materiálu'!E$4,0,IF('Seznam materiálu'!H$4=Průměry!G5,0,IFERROR(VLOOKUP(A5,'Výpočet kapacit'!E$5:E$59,1,FALSE),0)))) -> 0 | I4: =IF(A6='Seznam materiálu'!B4,0,IF(H5='Seznam materiálu'!K4,0,IF(Průměry!F7='Seznam materiálu'!B4,0,IF(G6='Seznam materiálu'!H4,0,IF('Seznam materiálu'!K4=Průměry!A6,0,IF('Seznam materiálu'!K4=0,0,IFERROR(VLOOKUP(Průměry!A6,'Výpočet kapacit'!E6:E60,1,FALSE),0))))))) -> 0 | J4: =IF(A7='Seznam materiálu'!B4,0,IF(I5='Seznam materiálu'!N4,0,IF(H6='Seznam materiálu'!K4,0,IF(G7='Seznam materiálu'!H4,0,IF(F8='Seznam materiálu'!E4,0,IF('Seznam materiálu'!N4=Průměry!A7,0,IFERROR(VLOOKUP(Průměry!A7,'Výpočet kapacit'!E5:E59,1,FALSE),0))))))) -> 0 | K4: =IF(A8='Seznam materiálu'!B4,0,IF(J5='Seznam materiálu'!Q4,0,IF(I6='Seznam materiálu'!N4,0,IF(H7='Seznam materiálu'!K4,0,IF(G8='Seznam materiálu'!H4,0,IF(F9='Seznam materiálu'!E4,0,IFERROR(VLOOKUP(A8,'Výpočet kapacit'!E5:E59,1,FALSE),0))))))) -> 0
A5: PA6 | B5: 8 | F5: =IF('Seznam materiálu'!B4=Průměry!A4,0,IFERROR(VLOOKUP(A4,'Výpočet kapacit'!E5:E59,1,FALSE),0)) -> 0 | G5: =IF('Seznam materiálu'!B4=Průměry!A5,0,IF('Seznam materiálu'!E4=Průměry!F6,0,IFERROR(VLOOKUP(A5,'Výpočet kapacit'!E5:E59,1,FALSE),0))) -> 0 | H5: =IF(A6='Seznam materiálu'!B4,0,IF(F7='Seznam materiálu'!E$4,0,IF('Seznam materiálu'!H$4=Průměry!G6,0,IFERROR(VLOOKUP(A6,'Výpočet kapacit'!E$5:E$59,1,FALSE),0)))) -> 0 | I5: =IF(A7='Seznam materiálu'!B4,0,IF(F8='Seznam materiálu'!B4,0,IF(G7='Seznam materiálu'!K4,0,IF(H6='Seznam materiálu'!K4,0,IF('Seznam materiálu'!K4=Průměry!A7,0,IF('Seznam materiálu'!K4=0,0,IFERROR(VLOOKUP(Průměry!A7,'Výpočet kapacit'!E5:E59,1,FALSE),0))))))) -> 0 | J5: =IF(A8='Seznam materiálu'!B4,0,IF(I6='Seznam materiálu'!N4,0,IF(H7='Seznam materiálu'!K4,0,IF(G8='Seznam materiálu'!H4,0,IF(F9='Seznam materiálu'!E4,0,IF('Seznam materiálu'!N4=Průměry!A8,0,IFERROR(VLOOKUP(Průměry!A8,'Výpočet kapacit'!E5:E59,1,FALSE),0))))))) -> 0 | K5: =IF(A9='Seznam materiálu'!B4,0,IF(J6='Seznam materiálu'!Q4,0,IF(I7='Seznam materiálu'!N4,0,IF(H8='Seznam materiálu'!K4,0,IF(G9='Seznam materiálu'!H4,0,IF(F10='Seznam materiálu'!E4,0,IFERROR(VLOOKUP(A9,'Výpočet kapacit'!E5:E59,1,FALSE),0))))))) -> 0
A6: Ertalon černý | B6: 10 | F6: =IF('Seznam materiálu'!B4=Průměry!A5,0,IFERROR(VLOOKUP(A5,'Výpočet kapacit'!E5:E59,1,FALSE),0)) -> 0 | G6: =IF('Seznam materiálu'!B4=Průměry!A6,0,IF('Seznam materiálu'!E4=Průměry!F7,0,IFERROR(VLOOKUP(A6,'Výpočet kapacit'!E5:E59,1,FALSE),0))) -> 0 | H6: =IF(A7='Seznam materiálu'!B4,0,IF(F8='Seznam materiálu'!E$4,0,IF('Seznam materiálu'!H$4=Průměry!G7,0,IFERROR(VLOOKUP(A7,'Výpočet kapacit'!E$5:E$59,1,FALSE),0)))) -> 0 | I6: =IF(A8='Seznam materiálu'!B4,0,IF('Seznam materiálu'!K4=Průměry!A8,0,IF('Seznam materiálu'!K4=0,0,IFERROR(VLOOKUP(Průměry!A8,'Výpočet kapacit'!E5:E49,1,FALSE),0)))) -> 0 | J6: =IF(A9='Seznam materiálu'!B4,0,IF(I7='Seznam materiálu'!N4,0,IF(H8='Seznam materiálu'!K4,0,IF(G9='Seznam materiálu'!H4,0,IF(F10='Seznam materiálu'!E4,0,IF('Seznam materiálu'!N4=Průměry!A9,0,IFERROR(VLOOKUP(Průměry!A9,'Výpočet kapacit'!E5:E59,1,FALSE),0))))))) -> 0
A7: EN2007 | B7: 12 | F7: =IF('Seznam materiálu'!B4=Průměry!A6,0,IFERROR(VLOOKUP(A6,'Výpočet kapacit'!E5:E59,1,FALSE),0)) -> 0 | G7: =IF('Seznam materiálu'!B4=Průměry!A7,0,IF('Seznam materiálu'!E4=Průměry!F8,0,IFERROR(VLOOKUP(A7,'Výpočet kapacit'!E5:E59,1,FALSE),0))) -> 0 | H7: =IF(A8='Seznam materiálu'!B4,0,IF(F9='Seznam materiálu'!E$4,0,IF('Seznam materiálu'!H$4=Průměry!G8,0,IFERROR(VLOOKUP(A8,'Výpočet kapacit'!E$5:E$59,1,FALSE),0)))) -> 0 | I7: =IF(A9='Seznam materiálu'!B4,0,IF('Seznam materiálu'!K4=Průměry!A9,0,IF('Seznam materiálu'!K4=0,0,IFERROR(VLOOKUP(Průměry!A9,'Výpočet kapacit'!E5:E59,1,FALSE),0)))) -> 0
A8: CuAl10Fe3Mn1,5 | B8: 14 | F8: =IF('Seznam materiálu'!B4=Průměry!A7,0,IFERROR(VLOOKUP(A7,'Výpočet kapacit'!E5:E59,1,FALSE),0)) -> 0 | G8: =IF('Seznam materiálu'!B4=Průměry!A8,0,IF('Seznam materiálu'!E4=Průměry!F9,0,IFERROR(VLOOKUP(A8,'Výpočet kapacit'!E5:E59,1,FALSE),0))) -> 0 | H8: =IF(A9='Seznam materiálu'!B4,0,IF(F10='Seznam materiálu'!E$4,0,IF('Seznam materiálu'!H$4=Průměry!G9,0,IFERROR(VLOOKUP(A9,'Výpočet kapacit'!E$5:E$59,1,FALSE),0)))) -> 0
A9: PA | B9: 15 | F9: =IF('Seznam materiálu'!B4=Průměry!A8,0,IFERROR(VLOOKUP(A8,'Výpočet kapacit'!E5:E59,1,FALSE),0)) -> 0 | G9: =IF('Seznam materiálu'!B4=Průměry!A9,0,IF('Seznam materiálu'!E4=Průměry!F10,0,IFERROR(VLOOKUP(A9,'Výpočet kapacit'!E5:E59,1,FALSE),0))) -> 0
B10: 16 | F10: =IF('Seznam materiálu'!B4=Průměry!A9,0,IFERROR(VLOOKUP(A9,'Výpočet kapacit'!E5:E59,1,FALSE),0)) -> 0
B11: 18
B12: 20
B13: 22
B14: 24
B15: 25
B16: 26
B17: 28
B18: 30
B19: 32
B20: 35
B21: 38
B22: 40
B23: 42
B24: 45
B25: 48
B26: 50
B27: 55
B28: 20x2
B29: 22x2
B30: 22x3
B31: 30x4
B32: 45x5
B33: 45x8
B34: 51x3,2
B35: SW11
B36: SW12

Sheet List1
A1: DIA-020.08 a | B1: DIA-020.08 a | C1: 39 | D1: 9.2 | E1: 120 | F1: =(2400*0.14)/E1 -> 2.8 | G1: =C1*0.18 -> 7.02 | H1: =D1-F1-G1 -> -0.62
A2: DIA-ZP-003.01.03 b | B2: DIA-ZP-003.01.03 b | C2: 112 | D2: 24.1 | E2: 40 | F2: =(2400*0.14)/E2 -> 8.4 | G2: =C2*0.18 -> 20.16 | H2: =D2-F2-G2 -> -4.46
A3: DIA-ZP-003.01.04 a | B3: DIA-ZP-003.01.04 a | C3: 70 | D3: 53 | E3: 40 | F3: 8.4 | G3: 12.6 | H3: 32
A4: PPA-06.14 c | B4: PPA-06.14 c | C4: 80 | D4: 19.1 | E4: 40 | F4: 8.4 | G4: 14.4 | H4: -3.7
A5: PPA-06.19.05 | B5: PPA-06.19.05 | C5: 29 | D5: 8.7 | E5: 40 | F5: 8.4 | G5: 5.22 | H5: -4.92
A6: PPA-077.01.03 b | B6: PPA-077.01.03 b | C6: 130 | D6: 100 | E6: 80 | F6: 4.2 | G6: 23.4 | H6: 72.4
A7: PPA-077.15 d | B7: PPA-077.15 d | C7: 75 | D7: 27.6 | E7: 120 | F7: 2.8 | G7: 13.5 | H7: 11.3
A8: PPA-102.07 | B8: PPA-102.07 | C8: 57 | D8: 14.4 | E8: 500 | F8: 0.672 | G8: 10.26 | H8: 3.468
A9: PPA-24 | B9: PPA-24 | C9: 25 | D9: 7.3 | E9: 60 | F9: 5.6 | G9: 4.5 | H9: -2.8
A10: PPB-001.04.02 | B10: PPB-001.04.02 | C10: 62 | D10: 10.2 | E10: 120 | F10: 2.8 | G10: 11.16 | H10: -3.76
A11: PPB-001.06.04 | B11: PPB-001.06.04 | C11: 22 | D11: 5.1 | E11: 120 | F11: 2.8 | G11: 3.96 | H11: -1.66
A12: PPB-001.08.04 | B12: PPB-001.08.04 | C12: 23 | D12: 5.9 | E12: 60 | F12: 5.6 | G12: 4.14 | H12: -3.84
A13: PPB-001.10.02 a | B13: PPB-001.10.02 a | C13: 42 | D13: 21,6 | E13: 120 | F13: =(2400*0.14)/E13 -> 2.8 | G13: 7.56 | H13: 11.24
A14: PPB-001.10.03 b | B14: PPB-001.10.03 b | C14: 63 | D14: 14,9 | E14: 120 | F14: 2.8 | G14: 11.34 | H14: 0.76
A15: PPB-001.10.04 b | B15: PPB-001.10.04 b | C15: 25 | D15: 6 | E15: 120 | F15: 2.8 | G15: 4.5 | H15: -1.3
A16: PPB-001.10.05 | B16: PPB-001.10.05 | C16: 170 | D16: 70 | E16: 60 | F16: 5.6 | G16: 30.6 | H16: 33.8
A17: PPB-001.10.06 | B17: PPB-001.10.06 | C17: 296 | D17: 76.2 | E17: 60 | F17: 5.6 | G17: 53.28 | H17: 17.32
A18: PPB-001.16.01 a | B18: PPB-001.16.01 a | C18: 30 | D18: 29.2 | E18: 180 | F18: 1.866666667 | G18: 5.4 | H18: 21.93333333
A19: PPB-002.28 | B19: PPB-002.28 | C19: 57 | D19: 14.4 | E19: 800 | F19: 0.42 | G19: 10.26 | H19: 3.72
A20: PPB-002.30 a | B20: PPB-002.30 a | C20: 31 | D20: 7.2 | E20: 240 | F20: 1.4 | G20: 5.58 | H20: 0.22
A21: PPB-003.09.02 | B21: PPB-003.09.02 | C21: 143 | D21: 33.3 | E21: 60 | F21: 5.6 | G21: 25.74 | H21: 1.96
A22: PPB-005.02.01.04 | B22: PPB-005.02.01.04 | C22: 18 | D22: 5.5 | E22: 120 | F22: 2.8 | G22: 3.24 | H22: -0.54
A23: PPB-005.06 a | B23: PPB-005.06 a | C23: 107 | D23: 11.6 | E23: 120 | F23: 2.8 | G23: 19.26 | H23: -10.46
A24: PPB-005.18 | B24: PPB-005.18 | C24: 37 | D24: 12.1 | E24: 240 | F24: 1.4 | G24: 6.66 | H24: 4.04
A25: PPB-005.19 a | B25: PPB-005.19 a | C25: 56 | D25: 15.4 | E25: 60 | F25: 5.6 | G25: 10.08 | H25: -0.28
A26: PPB-005.22 | B26: PPB-005.22 | C26: 58 | D26: 23.4 | E26: 120 | F26: 2.8 | G26: 10.44 | H26: 10.16
A27: PPB-006.02.02 a | B27: PPB-006.02.02 a | C27: 42 | D27: 16 | E27: 60 | F27: 5.6 | G27: 7.56 | H27: 2.84
A28: PPB-006.02.04 | B28: PPB-006.02.04 | C28: 22 | D28: 6 | E28: 120 | F28: 2.8 | G28: 3.96 | H28: -0.76
A29: PPB-006.03.04 a | B29: PPB-006.03.04 a | C29: 35 | D29: 33 | E29: 60 | F29: 5.6 | G29: 6.3 | H29: 21.1
A30: PPB-006.03.05 a | B30: PPB-006.03.05 a | C30: 34 | D30: 29 | E30: 60 | F30: 5.6 | G30: 6.12 | H30: 17.28
A31: PPB-006.08.02 a | B31: PPB-006.08.02 a | C31: 53 | D31: 14.5 | E31: 180 | F31: 1.866666667 | G31: 9.54 | H31: 3.093333333
A32: PPB-006.09.01 b | B32: PPB-006.09.01 b | C32: 75 | D32: 28.6 | E32: 180 | F32: 1.866666667 | G32: 13.5 | H32: 13.23333333
A33: PPB-006.10.01 a | B33: PPB-006.10.01 a | C33: 107 | D33: 38.8 | E33: 90 | F33: 3.733333333 | G33: 19.26 | H33: 15.80666667
A34: PPB-006.14.01 a | B34: PPB-006.14.01 a | C34: 42 | D34: 17.5 | E34: 60 | F34: 5.6 | G34: 7.56 | H34: 4.34
A35: PPB-006.14.02 b | B35: PPB-006.14.02 b | C35: 75 | D35: 25.4 | E35: 60 | F35: 5.6 | G35: 13.5 | H35: 6.3
A36: PPB-006.19 | B36: PPB-006.19 | C36: 40 | D36: 8.2 | E36: 60 | F36: 5.6 | G36: 7.2 | H36: -4.6
A37: PPB-006.25 a | B37: PPB-006.25 a | C37: 35 | D37: 24.3 | E37: 60 | F37: 5.6 | G37: 6.3 | H37: 12.4
A38: PPB-006.26.01 a | B38: PPB-006.26.01 a | C38: 29 | D38: 17.9 | E38: 60 | F38: 5.6 | G38: 5.22 | H38: 7.08
A39: PPB-006.28 a | B39: PPB-006.28 a | C39: 33 | D39: 31.5 | E39: 60 | F39: 5.6 | G39: 5.94 | H39: 19.96
A40: PPB-006.29 | B40: PPB-006.29 | C40: 27 | D40: 7.5 | E40: 120 | F40: 2.8 | G40: 4.86 | H40: -0.16
A41: PPB-006.30 | B41: PPB-006.30 | C41: 37 | D41: 10.6 | E41: 60 | F41: 5.6 | G41: 6.66 | H41: -1.66
A42: PPB-006.31.01 | B42: PPB-006.31.01 | C42: 18 | D42: 5.6 | E42: 60 | F42: 5.6 | G42: 3.24 | H42: -3.24
A43: PPB-007.07.07 a | B43: PPB-007.07.07 b | C43: 89 | D43: 28.9 | E43: 120 | F43: 2.8 | G43: 16.02 | H43: 10.08
A44: PPB-007.07.14 a | B44: PPB-007.07.14 a | C44: 31 | D44: 7.1 | E44: 400 | F44: 0.84 | G44: 5.58 | H44: 0.68
A45: PPB-007.07.15 a | B45: PPB-007.07.15 a | C45: 32 | D45: 6.7 | E45: 200 | F45: 1.68 | G45: 5.76 | H45: -0.74
A46: PPB-007.07.16 | B46: PPB-007.07.16 | C46: 21 | D46: 4.7 | E46: 200 | F46: 1.68 | G46: 3.78 | H46: -0.76
A47: PPB-007.07.17 | B47: PPB-007.07.17 | C47: 17 | D47: 4.2 | E47: 200 | F47: 1.68 | G47: 3.06 | H47: -0.54
A48: PPB-007.08.02 | B48: PPB-007.08.02 | C48: 39 | D48: 11.2 | E48: 120 | F48: 2.8 | G48: 7.02 | H48: 1.38
A49: PPB-007.08.06 | B49: PPB-007.08.06 | C49: 49 | D49: 10.7 | E49: 120 | F49: 2.8 | G49: 8.82 | H49: -0.92
A50: PPB-007.08.09 | B50: PPB-007.08.09 | C50: 30 | D50: 7.2 | E50: 120 | F50: 2.8 | G50: 5.4 | H50: -1
A51: PPB-007.11 | B51: PPB-007.11 | C51: 24 | D51: 8.1 | E51: 120 | F51: 2.8 | G51: 4.32 | H51: 0.98
A52: PPB-007.14.01 | B52: PPB-007.14.01 | C52: 61 | D52: 17.1 | E52: 120 | F52: 2.8 | G52: 10.98 | H52: 3.32
A53: PPB-007.15.01 a | B53: PPB-007.15.01 a | C53: 31 | D53: 8.6 | E53: 120 | F53: 2.8 | G53: 5.58 | H53: 0.22
A54: PPB-007.25 b | B54: PPB-007.25 b | C54: 62 | D54: 30 | E54: 200 | F54: 1.68 | G54: 11.16 | H54: 17.16
A55: PPB-007.26.01 | B55: PPB-007.26.01 | C55: 54 | D55: 35.4 | E55: 120 | F55: 2.8 | G55: 9.72 | H55: 22.88
A56: PPB-007.33 a | B56: PPB-007.33 a | C56: 34 | D56: 16,2 | E56: 120 | F56: 2.8 | G56: 6.12 | H56: 7.28
A57: PPB-010.07 b | B57: PPB-010.07 b | C57: 108 | D57: 8.1 | E57: 120 | F57: 2.8 | G57: 19.44 | H57: -14.14
A58: PPB-010.08.02 | B58: PPB-010.08.02 | C58: 20 | D58: 4.2 | E58: 120 | F58: 2.8 | G58: 3.6 | H58: -2.2
A59: PPB-012.02.02.02 | B59: PPB-012.02.02.02 | C59: 49 | D59: 24.2 | E59: 120 | F59: 2.8 | G59: 8.82 | H59: 12.58
A60: PPB-012.02.02.03 | B60: PPB-012.02.02.03 | C60: 74 | D60: 28.9 | E60: 120 | F60: 2.8 | G60: 13.32 | H60: 12.78
A61: PPB-012.02.03.06.01 | B61: PPB-012.02.03.06.01 | C61: 75 | D61: 25.4 | E61: 60 | F61: 5.6 | G61: 13.5 | H61: 6.3
A62: PPB-012.02.03.06.02 | B62: PPB-012.02.03.06.02 | C62: 31 | D62: 25.4 | E62: 60 | F62: 5.6 | G62: 5.58 | H62: 14.22
A63: PPB-012.02.03.07.02 | B63: PPB-012.02.03.07.02 | C63: 20 | D63: 8 | E63: 60 | F63: 5.6 | G63: 3.6 | H63: -1.2
A64: PPB-015 a | B64: PPB-015 a | C64: 54 | D64: 69.6 | E64: 60 | F64: 5.6 | G64: 9.72 | H64: 54.28
A65: PPB-017.02 a | B65: PPB-017.02 a | C65: 49 | D65: 12.5 | E65: 60 | F65: 5.6 | G65: 8.82 | H65: -1.92
A66: PPB-018 | B66: PPB-018 a | C66: 42 | D66: 25.6 | E66: 120 | F66: =(2400*0.14)/E66 -> 2.8 | G66: =C66*0.18 -> 7.56 | H66: =D66-F66-G66 -> 15.24
A67: PPB-019 | B67: PPB-019 | C67: 30 | D67: 12.9 | E67: 120 | F67: 2.8 | G67: 5.4 | H67: 4.7
A68: PPB-020 | B68: PPB-020 | C68: 36 | D68: 11.5 | E68: 120 | F68: 2.8 | G68: 6.48 | H68: 2.22
A69: PPB-021 | B69: PPB-021 | C69: 38 | D69: 12.2 | E69: 120 | F69: 2.8 | G69: 6.84 | H69: 2.56
A70: PPB-029 | B70: PPB-029 | C70: 46 | D70: 13.4 | E70: 60 | F70: 5.6 | G70: 8.28 | H70: -0.48
A71: PPB-060.05 b | D71: 34 | E71: 60 | F71: 5.6 | G71: 0 | H71: 28.4
A72: PPB-064.01.02 | B72: PPB-064.01.02 | C72: 39 | D72: 12.6 | E72: 240 | F72: 1.4 | G72: 7.02 | H72: 4.18
A73: PPB-067.01.01.02 a | B73: PPB-067.01.01.02 a | C73: 185 | D73: 12.6 | E73: 60 | F73: 5.6 | G73: 33.3 | H73: -26.3
A74: PPB-067.01.01.03 a | B74: PPB-067.01.01.03 a | C74: 185 | D74: 105,2 | E74: 60 | F74: 5.6 | G74: 33.3 | H74: 66.6
A75: PPB-067.02.01.02 a | B75: PPB-067.02.01.02 a | C75: 200 | D75: 88,2 | E75: 60 | F75: 5.6 | G75: 36 | H75: 46.4
A76: PPB-067.02.01.03 | B76: PPB-067.02.01.03 | C76: 36 | D76: 12.9 | E76: 60 | F76: 5.6 | G76: 6.48 | H76: 0.82
A77: PPB-067.03.01.02 a | B77: PPB-067.03.01.02 a | C77: 200 | D77: 86.1 | E77: 60 | F77: 5.6 | G77: 36 | H77: 44.5
A78: PPB-069.01.02 | B78: PPB-069.01.02 | C78: 90 | D78: 32.1 | E78: 120 | F78: 2.8 | G78: 16.2 | H78: 13.1
A79: SLA-001.01.09 e | B79: SLA-001.01.09 e | C79: 40 | D79: 66 | E79: 120 | F79: 2.8 | G79: 7.2 | H79: 56
A80: SLA-001.01.17 | B80: SLA-001.01.17 | C80: 86 | D80: 22.9 | E80: 120 | F80: 2.8 | G80: 15.48 | H80: 4.62
A81: SLA-001.09 g | B81: SLA-001.09 g | C81: 78 | D81: 35 | E81: 60 | F81: 5.6 | G81: 14.04 | H81: 15.36
A82: SLA-001.30.02 b | B82: SLA-001.30.02 b | C82: 21 | D82: 26.9 | E82: 60 | F82: 5.6 | G82: 3.78 | H82: 17.52
A83: SLA-001.31.02 b | B83: SLA-001.31.02 b | C83: 21 | D83: 26.9 | E83: 60 | F83: 5.6 | G83: 3.78 | H83: 17.52
A84: SLA-001.36 a | B84: SLA-001.36 a | C84: 35 | D84: 13.2 | E84: 120 | F84: 2.8 | G84: 6.3 | H84: 4.1
A85: SLA-003.02.05.07 | B85: SLA-003.02.05.07 | C85: 40 | D85: 13.1 | E85: 100 | F85: 3.36 | G85: 7.2 | H85: 2.54
A86: SLA-003.16.02.03 | B86: SLA-003.16.02.03 | C86: 40 | D86: 9.6 | E86: 60 | F86: 5.6 | G86: 7.2 | H86: -3.2
A87: SLA-003.19.05.01 | B87: SLA-003.19.05.01 | C87: 70 | D87: 11.7 | E87: 100 | F87: 3.36 | G87: 12.6 | H87: -4.26
A88: SLA-003.19.05.03 | B88: SLA-003.19.05.03 | C88: 25 | D88: 5.57 | E88: 100 | F88: 3.36 | G88: 4.5 | H88: -2.29
A89: SLA-007.04.03 c | B89: SLA-007.04.03 c | C89: 159 | D89: 53.6 | E89: 120 | F89: 2.8 | G89: 28.62 | H89: 22.18
A90: SLA-013 | B90: SLA-013 | C90: 17 | D90: 4.5 | E90: 200 | F90: 1.68 | G90: 3.06 | H90: -0.24
A91: SLA-018 a | B91: SLA-018 a | C91: 16 | D91: 4.1 | E91: 300 | F91: 1.12 | G91: 2.88 | H91: 0.1
A92: SLA-020.01.02 | B92: SLA-020.01.02 | C92: 40 | D92: 12.5 | E92: 120 | F92: 2.8 | G92: 7.2 | H92: 2.5
A93: SLA-026 | B93: SLA-026 | C93: 35 | D93: 14.4 | E93: 240 | F93: 1.4 | G93: 6.3 | H93: 6.7
A94: SLA-033 a | B94: SLA-033 a | C94: 38 | D94: 10.2 | E94: 60 | F94: 5.6 | G94: 6.84 | H94: -2.24
